Workbook

Sheet Cover Page
D1: Add company logo
N2: Version 23.4a (for incinerators) - 15/11/2023
N4: Note that there is another version of this template available for co-incinerators
B8: Add photo
N13: Notes:
N14: This template may require adjustments by individual operators to meet specific reporting requirements as defined in the site Permit(s)
B29: Annual Performance Report 2023
B31: Permit EPR/WP3438HZ
B33: Suffolk Energy from Waste Facility
B37: SUEZ Recycling and Recovery Suffolk Ltd
B39: Year: | C39: 2023
B41: Address: | C41: Lodge Lane, Great Blakenham, Suffolk, IP6 0JE
B43: Tel: | C43: 01473 839149
B45: Email: | C45: james.clarke@suez.com
B47: Prepared by: | C47: Richard Watkins | F47: Position: | G47: EIR Manager
C48: Robert Taylor | G48: Technical Plant Engineer
B50: Approved by: | C50: James Clarke | F50: Position: | G50: EfW Plant Manager
B52: Version: | C52: 2
B54: Issue Date: | C54: 2024-03-18

Sheet Contents
A1: =+'Cover Page'!$B$29 -> Annual Performance Report 2023 | E1: =+'Cover Page'!$B$33 -> Suffolk Energy from Waste Facility
A3: Contents | K3: Notes:
A4: Section | B4: Subject | H4: Page | K4: Section references and Page nos. to be inserted
B5: Facility Information | K5: Sections and Subjects may require adjustment by individual operators to meet specific reporting requirements as defined in the sites Permit(s)
B6: Operational Data
B7: Operational Summary
B8: Performance Form 1
B9: Energy Form 1
B10: Permit Compliance
B11: Improvements
B12: Public Liaison
B13: Carbon dioxide and nitrous oxide emissions
B14: Residue Quality
B15: Emissions to Water
B16: Emissions to Air (periodically monitored)
B17: Emissions to Air (continuously monitored)
B18: Hydrogen Chloride emissions
B19: Sulphur Dioxide emissions
B20: Oxides of Nitrogen emissions
B21: Total Organic Carbon emissions
B22: Particulate Matter emissions
B23: Carbon Monoxide emissions
B24: Ammonia emissions
A27: Version Control
A28: Section | B28: Information | H28: Date
A29: 1 | B29: Original Report | H29: 2024-01-30
A30: 2 | B30: Updated with amneded APCR Q4 value on Operational data tab | H30: 2024-03-18
A35: Distribution
A36: Copy | B36: Name, Role | H36: No.
A37: 1 | B37: Katy Poulding - Environment Agency Regulatory Officer | H37: 1
A38: 2 | B38: James Clarke - SUEZ Plant Manager | H38: 1
A39: 3 | B39: Siobhan O'Dell - SUEZ Community Liaison Manager | H39: 1
A40: 4 | B40: Samantha Edge - SUEZ Commercial Contracts Manager | H40: 1
A45: This report is required under the Industrial Emissions Directive’s Article 55(2) requirements on reporting and public information on waste incineration plants and co-incineration plants, which require the operator to produce an annual report on the functioning and monitoring of the plant and make it available to the public.

Sheet Facility Info
A1: =+'Cover Page'!$B$29 -> Annual Performance Report 2023 | E1: =+'Cover Page'!$B$33 -> Suffolk Energy from Waste Facility
A3: Plant Description and Design | K3: Notes:
A5: This non-hazardous waste incinerator operates 24/7 across two furnace lines and can receive up to 295,000 tonnes of municipal waste and commercial/Industrial waste per annum. The heat produced by waste incineration is used to raise superheated steam which generates approximately 179,000 MWh/annum of electricity. Activities associated with the incineration are receipt and storage of municipal waste and commercial/industrial waste, production of steam and electricity, abatement of flue gas and handling of Incinerator Bottom Ash (IBA) and Air Pollution Control Residue (APCR). Suffolk EfW commissioning finished on 1st December 2014, when the plant was handed over from the EPC contractor to SUEZ UK. Permit conditions have applied since this date. The data included in this report corresponds to the following period; 01 January 2023 to 31 December 2023. | K5: Include summary of plant design, design capacity, no. of combustion lines, electrical and heat capacity and any other general information that describes the facility, its location and purpose
A20: Summary of Operational Processes and Procedures
A22: RECEPTION HALL & BUNKER Incoming waste is delivered to site by refuse collection trucks. It is then checked in, weighed and delivered into the reception hall. A large reception hall allows for refuse collection trucks to manoeuvre and tip waste safely. Air needed for combustion is drawn into the furnace from here so that negative pressure is maintained in order to avoid odour and dust escaping the building. Waste vehicles reverse to a wheel stop and tip their loads into a large concrete bunker. Mixing of waste occurs as the cranes driver sorts the waste looking for unsuitable material to be removed, and to improve the homogeneity of the incinerator feedstock. CONTROL ROOM The plant’s control room centralises the operation of all equipment, including the grab cranes used to mix and load waste into a hopper that feeds the furnace. All on-site functions are monitored automatically and manually. Its systems verify in real time that equipment is functioning properly, continuously monitor the combustion gas, and maximise the efficiency of the entire EfW process. GRATE AND BOILER Waste is lifted into the charging hoppers by the crane. From here it falls into the furnace-charging chute and then is introduced onto the grate system by hydraulic feeders for incineration. An auxiliary burner can be used to help keeping the temperature above 850°C if required. The thermal energy released from the burning is used to convert water to super-heated steam along a boiler composed of 6 vertical passes. At high pressure, this steam drives a turbine to generate electricity. ELECTRICITY GENERATION Electricity is generated at 11kv, with an electric production of 203,226 MWh during 2023 and exporting 184,527 MWh/annum to the national grid. INCINERATOR BOTTOM ASH (IBA) Ash left on the grate after incineration is carried by conveyor, after quenching, to the IBA processing facility. Up to 65,000 tonne of IBA is processed on site by the removal of ferrous and non-ferrous metal, stabilised and separated into fraction sizes of IBA prior to the export from site of the processed IBA and metals for re-use. EMISSION CONTROL & AIR POLLUTION CONTROL RESIDUE (APCR) The gases from the furnace are subject to a rigorous cleaning process involving urea as selective non-catalytic reduction (SNCR), lime and active carbon injections. This removes oxides of nitrogen, acidic gases, dioxins, and heavy metals from the gas stream. The cleaned gas passes through fine-fabric bag filters to remove solid particles before it is emitted through the stack. The resultant APCR residue, or fly-ash, contains particles from the incineration process, lime used in the flue gas treatment, salts and carbon dust. It is stored in a sealed silo until it is tankered away for recycling. EMISSIONS MONITORING As they pass through the stack, the residual flue gases from the process are continuously monitored before release. This data is relayed automatically to the control room. | K22: Include summary of key processes and procedures such as (but not limited to); waste reception, control rooms, grate, bed and boiler, energy & heat generation, cooling systems, residue management, emission controls, health and safety systems, maintenance

Sheet Operational Data
A1: =+'Cover Page'!$B$29 -> Annual Performance Report 2023 | E1: =+'Cover Page'!$B$33 -> Suffolk Energy from Waste Facility
A3: Operational Data
A4: Plant Size | B4: 295000 | D4: tonnes pa | E4: 89 | F4: MWth | G4: 26 | H4: MWe | J4: Notes:
A5: No. of combustion lines | B5: 2 | D5: No. of Turbines: | F5: 1 | J5: * - RDF to include SRF
J6: ** - Combusted tonnage = tonnes delivered in period + (tonnes in bunker at start of period – tonnes in bunker at end of period), or equivalent calculation depending on plant type
A7: Waste types received | B7: Unit | C7: Q1 | D7: Q2 | E7: Q3 | F7: Q4 | G7: Year Total | H7: %
A8: Household / Local Authority | B8: tonnes | C8: 66534.34 | D8: 57455.57 | E8: 65878.18 | F8: 63425.84 | G8: =SUM(C8:F8) -> 253293.93 | H8: =IF(G8>0,G8/$G$18,"-") -> 0.8597679738
A9: Commercial & Industrial | C9: 7808.16 | D9: 4545.84 | E9: 8001.98 | F9: 13268.68 | G9: =SUM(C9:F9) -> 33624.66 | H9: 0.1141338278 | J9: *** - CHP plants only
A10: Hazardous | C10: 0 | D10: 0 | E10: 0 | F10: 0 | G10: 0 | H10: - | J10: **** Availability Definition: 'the availability of a line is to be calculated by the number of hours the line reported Continuously Monitored emission levels to the Regulator through the calendar year divided by the total number of hours in that year. The overall plant availability is calculated as the Mean of all lines in the plant. For clarity this includes periods of abnormal operation.' Rationale: The primary function of an Energy from Waste facility is the disposal of waste. It follows therefore that the availability of a plant is determined by the period of time a facility spends undertaking this activity.
A11: Clinical | C11: 1846.94 | D11: 1471.26 | E11: 1944.96 | F11: 2425.56 | G11: 7688.72 | H11: 0.02609819831
A12: Waste wood (biomass) | G12: 0 | H12: -
A13: Refuse Derived Fuel * - H'hold/LA | G13: =SUM(C13:F13) -> 0 | H13: -
A14: Refuse Derived Fuel * - C&I | G14: 0 | H14: -
A15: Other [Please specify] | G15: 0 | H15: -
A16: Other [Please specify] | G16: 0 | H16: -
A17: Other [Please specify] | G17: 0 | H17: -
A18: Total waste received | C18: =SUM(C8:C17) -> 76189.44 | D18: =SUM(D8:D17) -> 63472.67 | E18: =SUM(E8:E17) -> 75825.12 | F18: =SUM(F8:F17) -> 79120.08 | G18: 294607.31
A19: Rejected Waste | G19: =SUM(C19:F19) -> 0 | H19: =IF(G19>0,G19/$G$18,"-") -> -
A20: Unprocessed waste transferred out | G20: =SUM(C20:F20) -> 0 | H20: =IF(G20>0,G20/$G$18,"-") -> -
A21: Total waste combusted ** | C21: =C18+1880-2074 -> 75995.44 | D21: =D18+2074-3757 -> 61789.67 | E21: =E18+3757-1639 -> 77943.12 | F21: =F18+1639-1490 -> 79269.08 | G21: =SUM(C21:F21) -> 294997.31
J22: Password for protected cells A password has been set to prevent accidental editing of cells with formulae. If you still need to make an edit for some reason then the password = 1234
A23: Energy Usage / Export | B23: Unit | C23: Q1 | D23: Q2 | E23: Q3 | F23: Q4 | G23: Year Total | H23: KWh/te
A24: Power Generated | B24: MWh | C24: 53553.18446 | D24: 42407.83036 | E24: 55723.3332 | F24: 56541.4548 | G24: =SUM(C24:F24) -> 208225.8028 | H24: =IF(G24>0,G24*1000/$G$21,"-") -> 705.8566155
A25: Power Exported | C25: 47014.657 | D25: 37534.471 | E25: 49565.884 | F25: 50411.781 | G25: =SUM(C25:F25) -> 184526.793 | H25: =IF(G25>0,G25*1000/$G$21,"-") -> 625.5202564
A26: Power Used on site | C26: 6538.527464 | D26: 4873.359361 | E26: 6157.4492 | F26: 6129.6738 | G26: =SUM(C26:F26) -> 23699.00982 | H26: =IF(G26>0,G26*1000/$G$21,"-") -> 80.33635908
A27: Power Imported | C27: 74.333 | D27: 239.38866 | E27: 0 | F27: 0 | G27: 313.72166 | H27: =IF(G27>0,G27*1000/$G$21,"-") -> 1.063472952
A28: Parasitic Load | B28: % | C28: =IF(C24>0,1-C25/(C24+C27),"-") -> 0.1233109563 | D28: =IF(D24>0,1-D25/(D24+D27),"-") -> 0.1198846757 | E28: =IF(E24>0,1-E25/(E24+E27),"-") -> 0.1105003747 | F28: =IF(F24>0,1-F25/(F24+F27),"-") -> 0.1084102597 | G28: =IF(G24>0,1-G25/(G24+G27),"-") -> 0.115147148
A29: Thermal Energy Produced *** | B29: MWh | G29: =SUM(C29:F29) -> 0 | H29: =IF(G29>0,G29*1000/$G$21,"-") -> -
A30: Thermal Energy Exported *** | G30: 0 | H30: =IF(G30>0,G30*1000/$G$21,"-") -> -
A31: R1 value (if applicable) | B31: R1 | G31: 0.82
A33: Waste Disposal & Recovery | B33: Unit | C33: Q1 | D33: Q2 | E33: Q3 | F33: Q4 | G33: Year Total | H33: % inputs
A34: APC Residues - produced | B34: tonnes | C34: 2145.9 | D34: 1476.5 | E34: 1759.44 | F34: 2004.06 | G34: =SUM(C34:F34) -> 7385.9 | H34: =IF(G34>0,G34/$G$21,"-") -> 0.02503717746
A35: IBA - produced | C35: 13236.56 | D35: 11686.28 | E35: 12884.26 | F35: 14254.14 | G35: 52061.24 | H35: =IF(G35>0,G35/$G$21,"-") -> 0.1764803889
A36: Metals recycling | C36: 2422.6 | D36: 2446.58 | E36: 2308.56 | F36: 2375.62 | G36: =SUM(C36:F36) -> 9553.36 | H36: 0.03238456649
A37: Other | C37: 0 | D37: 0 | E37: 0 | F37: 0 | G37: =SUM(C37:F37) -> 0 | H37: -
A38: Other | C38: 0 | D38: 0 | E38: 0 | F38: 0 | G38: 0 | H38: -
A39: Other | C39: 0 | D39: 0 | E39: 0 | F39: 0 | G39: 0 | H39: -
A41: Raw Material Usage | B41: Unit | C41: Q1 | D41: Q2 | E41: Q3 | F41: Q4 | G41: Year Total | H41: kg or m3 /te
A42: Mains Water | B42: m3 | C42: 10467.959 | D42: 8041 | E42: 8635 | F42: 10468 | G42: =SUM(C42:F42) -> 37611.959 | H42: =IF(G42>0,G42/$G$21,"-") -> 0.1274993287
A43: Other Water | B43: m3 | G43: 0 | H43: =IF(G43>0,G43/$G$21,"-") -> -
A44: Ammonia | B44: kgs | G44: 0 | H44: -
A45: Urea | B45: kgs | C45: 166825.2058 | D45: 138105.6599 | E45: 184835.527 | F45: 238565.2169 | G45: =SUM(C45:F45) -> 728331.6096 | H45: 2.468943224
A46: Activated Carbon | B46: kgs | C46: 31194 | D46: 21985.76188 | E46: 19521.03445 | F46: 19521.39808 | G46: 92222.19441 | H46: 0.3126204588
A47: Lime / hydrated lime | B47: kgs | C47: 1009061.741 | D47: 604550.5109 | E47: 626948.7337 | F47: 807639.5142 | G47: 3048200.5 | H47: 10.33297727
A48: Fuel oil | B48: ltrs | C48: 54279.4447 | D48: 115031.0561 | E48: 55263.6431 | F48: 13021.63236 | G48: 237595.7763 | H48: 0.8054167554
A49: Gas | B49: cuf | G49: 0
A50: Other | G50: 0
A52: Summary | B52: Line/Unit | C52: Q1 | D52: Q2 | E52: Q3 | F52: Q4 | G52: Year Total | I52: Hrs in year
A53: Availability of waste combustion by line, hrs **** | B53: 1 | C53: 2094.218 | D53: 1754.82 | E53: 2142.82 | F53: 2208 | G53: =SUM(C53:F53) -> 8199.858 | H53: =+G53/$I$53 -> 0.9360568493 | I53: 8760
B54: 2 | C54: 2079.19 | D54: 1654.749 | E54: 2205.781 | F54: 2187.949 | G54: 8127.669 | H54: =+G54/$I$53 -> 0.9278160959
B55: 3 | G55: 0 | H55: 0
B56: 4 | G56: 0 | H56: 0
B57: 5 | G57: =SUM(C57:F57) -> 0 | H57: 0
A58: Overall Availability, mean avg. of all lines, hrs | G58: =AVERAGE(G53:G54) -> 8163.7635 | H58: 0.9319364726
A59: Hours of turbine operations, hrs | B59: 1 | C59: 2088.608 | D59: 1914.142 | E59: 2208 | F59: 2208 | G59: 8418.75 | H59: 0.9610445205
A60: Hours of turbine operations, hrs | B60: 2 | G60: 0 | H60: 0
A61: Hours of heat / steam export | G61: 0 | H61: =IF(B61>0,G60/I53,"n/a") -> n/a
A62: Net Calorific Value of waste | B62: MJ/kg | C62: =8777.09737571684/1000 -> 8.777097376 | D62: =8674.89899128492/1000 -> 8.674898991 | E62: =8726.95475645161/1000 -> 8.726954756 | F62: =8778.86965053763/1000 -> 8.778869651 | G62: =AVERAGE(C62:F62) -> 8.739455193
A63: Abnormal Events | B63: qty. | C63: 0 | D63: 0 | E63: 0 | F63: 0 | G63: 0 | H63: =IF(G63>0,"yes","no") -> no
A64: Abnormal operation | B64: hours | C64: 0 | D64: 0 | E64: 0 | F64: 0 | G64: 0 | H64: =+(G64)/I53 -> 0
A65: Permit Breaches | B65: qty. | C65: 3 | D65: 0 | G65: 3 | H65: =IF(G65>0,"yes","no") -> yes

Sheet Operational Summary
A1: =+'Cover Page'!$B$29 -> Annual Performance Report 2023 | E1: =+'Cover Page'!$B$33 -> Suffolk Energy from Waste Facility
A3: Summary of Plant Operations and Maintenance during the reporting year | K3: Notes:
A5: Suffolk EfW has continued to have a successful operating period in 2023 continuing to demonstrate high levels of availability. The outage was concluded successfully with repairs and upgrades to refractory in the first pass and replacement of all bag filters. | K5: Include summary of key operational and/or maintenance activity undertaken in the year, such as any major component upgrades and/or replacements
A29: Summary of Residue Handling for the reporting year
A31: All IBA produced by the EfW plant is transferred to the IBA recycling plant by conveyor, the IBA recycling plant is operated by Blue Phoenix. The IBA is non-hazardous, as confirmed by weekly analysis of the IBA, and undergoes a mechanical separation process to remove all ferrous and non-ferrous metals leaving an IBA aggregate product. The metals are transferred to other operators for recycling and the IBA is applied to land in construction activities as a replacement for virgin (quarried) aggregate. This is in accordance with Environment Agency Regulatory Position Statement (RPS) 247 "Using unbound IBAA in construction activities". Air Pollution Control (APC) residues is the fly ash from the boiler mixed with dry sorbents such as carbon and lime in the flu gas treatment plant. The APC residue is hazardous and is therefore collected and disposed of to landfill Some additional residues may be produced during cleaning of the boiler during cleaning activities in planned maintenance outages. This boiler ash, often mixed with grit blast residues from the cleaning process, is disposed of to landfill. | K31: Include in here a summary of residue handling regimes and destinations

Sheet Perf. Form 1
A1: =+'Cover Page'!C39 -> 2023 | B1: Annual Reporting Performance Form 1
A3: =+'Cover Page'!B31 -> Permit EPR/WP3438HZ | F3: Operator: | G3: SUEZ Recycling and Recovery Suffolk Ltd
A4: Facility: | B4: =+'Cover Page'!B33:I33 -> Suffolk Energy from Waste Facility | F4: Form: | G4: Performance 1
A6: Reporting Period from: | D6: 2023-01-01 | F6: to: | G6: 2023-12-31
A8: =+A1 -> 2023 | B8: Annual Reporting of Waste Disposal and Recovery
A9: Waste Description | C9: Disposal Route(s) | E9: Disposal Tonnes | G9: Recovery Tonnes | I9: % / tonne of waste incinerated
A10: 1) Hazardous Wastes
A11: APC Residues | E11: ='Operational Data'!G34 -> 7385.9 | I11: =IF((E11+G11)>0,(E11+G11)/'Operational Data'!$G$21, "-") -> 0.02503717746
A12: IBA | I12: =IF((E12+G12)>0,(E12+G12)/'Operational Data'!$G$21, "-") -> -
I13: =IF((E13+G13)>0,(E13+G13)/'Operational Data'!$G$21, "-") -> -
I14: =IF((E14+G14)>0,(E14+G14)/'Operational Data'!$G$21, "-") -> -
A15: Total Hazardous Waste | E15: =SUM(E11:F14) -> 7385.9 | G15: =SUM(G11:H14) -> 0 | I15: =IF((E15+G15)>0,(E15+G15)/'Operational Data'!$G$21, "-") -> 0.02503717746
A17: 2) Non-Hazardous Wastes
A18: IBA | G18: ='Operational Data'!G35 -> 52061.24 | I18: =IF((E18+G18)>0,(E18+G18)/'Operational Data'!$G$21, "-") -> 0.1764803889
A19: Ferrous Metal | G19: 6500 | I19: =IF((E19+G19)>0,(E19+G19)/'Operational Data'!$G$21, "-") -> 0.02203409923
A20: Non-ferrous Metal | G20: 3053 | I20: =IF((E20+G20)>0,(E20+G20)/'Operational Data'!$G$21, "-") -> 0.01034924691
A21: Process Water | I21: =IF((E21+G21)>0,(E21+G21)/'Operational Data'!$G$21, "-") -> -
I22: =IF((E22+G22)>0,(E22+G22)/'Operational Data'!$G$21, "-") -> -
A23: Total Non-Hazardous Waste | E23: =SUM(E18:F22) -> 0 | G23: =SUM(G18:H22) -> 61614.24 | I23: =IF((E23+G23)>0,(E23+G23)/'Operational Data'!$G$21, "-") -> 0.2088637351
A24: TOTAL WASTE | E24: =+E23+E15 -> 7385.9 | G24: =+G23+G15 -> 61614.24 | I24: =IF((E24+G24)>0,(E24+G24)/'Operational Data'!$G$21, "-") -> 0.2339009125
A26: Operator’s comments :
A31: =+A1 -> 2023 | B31: Annual Reporting of Water and Other Raw Material Usage
A32: Raw Material | E32: Usage | G32: Unit | H32: Specific Usage | J32: Unit
A33: Mains Water | E33: =+'Operational Data'!G42 -> 37611.959 | G33: m3 | H33: =IF(E33>0,E33/'Operational Data'!$G$21,"-") -> 0.1274993287 | J33: m3/te
A34: Total Water | E34: =+'Operational Data'!G43+'Operational Data'!G42 -> 37611.959 | G34: m3 | H34: =IF(E34>0,E34/'Operational Data'!$G$21,"-") -> 0.1274993287 | J34: m3/te
A35: Urea / Ammonia | E35: =+'Operational Data'!G45 -> 728331.6096 | G35: kg | H35: =IF(E35>0,E35/'Operational Data'!$G$21,"-") -> 2.468943224 | J35: kg/te
A36: Activated Carbon | E36: =+'Operational Data'!G46 -> 92222.19441 | G36: kg | H36: =IF(E36>0,E36/'Operational Data'!$G$21,"-") -> 0.3126204588 | J36: kg/te
A37: Lime / hydrated lime / Sodium Bicarb. | E37: =+'Operational Data'!G47 -> 3048200.5 | G37: kg | H37: =IF(E37>0,E37/'Operational Data'!$G$21,"-") -> 10.33297727 | J37: kg/te
A39: Operator’s comments :
A43: =+A31 -> 2023 | B43: Annual Reporting of other performance indicators
A44: Parameter | C44: Results by Line
C45: A1 | D45: A2 | E45: A3 | F45: A4 | G45: A5 | I45: Turbine 1 | J45: Turbine 2
A46: Operating hours for the year, hours | C46: ='Operational Data'!G53 -> 8199.858 | D46: ='Operational Data'!G54 -> 8127.669 | I46: ='Operational Data'!G59 -> 8418.75
A47: Number of periods of abnormal operation, qty. | C47: 0 | D47: 0
A48: Cumulative hours of abnormal operation for this year, hours | C48: 0 | D48: 0
A50: Operator’s comments :
A54: Signed: | B54: Richard Watkins | G54: Date: | H54: 2024-03-18

Sheet Energy Form 1
A1: =+'Cover Page'!C39 -> 2023 | B1: Annual Reporting of Energy Usage/Export
A3: =+'Cover Page'!B31 -> Permit EPR/WP3438HZ | F3: Operator: | G3: SUEZ Recycling and Recovery Suffolk Ltd
A5: Facility: | B5: =+'Cover Page'!B33:I33 -> Suffolk Energy from Waste Facility | F5: Form: | G5: Energy 1
A7: Reporting Period from: | D7: =+'Perf. Form 1'!D6:E6 -> 2023-01-01 | F7: to: | G7: =+'Perf. Form 1'!G6:H6 -> 2023-12-31
A9: Energy Source | D9: Energy Usage | F9: Unit | G9: Specific Usage (KWh/tonne incinerated
A10: Electricity Produced | D10: =+'Operational Data'!G24 -> 208225.8028 | F10: MWh | G10: =+'Operational Data'!H24 -> 705.8566155
A11: Electricity Imported | D11: =+'Operational Data'!G27 -> 313.72166 | F11: MWh | G11: =+'Operational Data'!H27 -> 1.063472952
A12: Electricity Exported | D12: =+'Operational Data'!G25 -> 184526.793 | F12: MWh | G12: =+'Operational Data'!H25 -> 625.5202564
A13: Gas Oil | D13: ='Operational Data'!G48*0.85/1000 -> 201.9564098 | F13: tonnes | G13: =(D13*42800*1000*(1/3600))/'Operational Data'!G21 -> 8.139183767
A14: Steam/hot water exported | D14: =+'Operational Data'!G30 -> 0 | F14: GWh | G14: =+'Operational Data'!H30 -> -
A18: Operator’s comments :
A19: Density value of 845 kg.m-3 used to convert gas oil litres to tonnes. Net Calorific Value (NCV) of 42,800 kJ.kg-1 used for gas oil
A29: Signed: | B29: Richard Watkins | G29: Date: | H29: 2024-01-29

Sheet Permit Compliance
A1: =+'Cover Page'!$B$29 -> Annual Performance Report 2023 | E1: =+'Cover Page'!$B$33 -> Suffolk Energy from Waste Facility
A3: Summary of Permit Compliance
A5: Compliance with permit limits for continuously monitored pollutants
A7: The plant met its emission limits as shown in the table below:
A8: Substance | C8: Percentage time compliant during operationNote 1 | L8: Notes:
C9: Half-hourly limit | F9: Daily limit | L9: Note 1: Please report to 2 decimal places, i.e. xx.xx% Note 2: Please provide a brief summary of each notification or non-compliance in the table (rather than just referring to notifications that were sent to the Regulator), including stating the value of measured result for any ELV exceedances.
A10: Particulates | C10: 1 | F10: 1
A11: Oxides of nitrogen | C11: 1 | F11: 1
A12: Sulphur dioxide | C12: 0.9999 | F12: 1
A13: Carbon monoxide | C13: 0.9998 | F13: 1
A14: Total organic carbon | C14: 0.9998 | F14: 1
A15: Hydrogen chloride | C15: 1 | F15: 1
A16: Ammonia | C16: 1 | F16: 1
A18: Summary of any notifications or non-compliances under the permit
A19: Date | B19: Summary of notification or non-compliance [including Line/Reference]Note 2 | E19: Reason | H19: Measures taken to prevent reoccurrence
A20: 2023-02-06 | B20: Line 2 - half hourly average SO2 result above limit | E20: High SO2 in waste | H20: Review mixing procedure with crane ops and look at boiler fouling to improve temps. for optimum reagent reaction.
A21: 2023-02-07 | B21: Line 1 - TOC exceedances of Abnormal Operation limits for 5 x half hourly averages | E21: Plant trip with complete power loss- no combustion control available | H21: Improve labelling of electrical switch's, review scope of contractor electrical works and review additional plant protection measures.
A22: 2023-02-07 | B22: Line 1 - CO exceedances of Abnormal Operation limits for 6 x half hourly averages
A23: 2023-04-03 | B23: IBA breach of the TOC limit (3.11% vs limit of 3.00%) | E23: Lab error, EA happy that no breach occurred. | H23: Samples retested and additional samples submitted for analysis.
A25: Summary of any complaints received and actions to taken to resolve them.
A26: Date | B26: Summary of complaint [including Line/Reference] | E26: Reason * | H26: Measures taken to prevent reoccurrence
A27: 2023-04-26 | B27: Odour complaint (waste smell) from a resident of Masons Drive | E27: Not identified, not substantiated. | H27: Offsite odour monitoring completed by site staff on a daily basis for 30 days following the complaint, no issues identified.
A28: 2023-09-13 | B28: Dust complaint - complaint from neighbour re yellow ash on vehicles in their car park. | E28: Not substantiated | H28: Complaint corresponded with widespread media coverage of Saharan dust deposits across the UK. Site derived dust would not be yellow.
E29: * including whether substantiated by the operator or the EA

Sheet Improvements
A1: =+'Cover Page'!$B$29 -> Annual Performance Report 2023 | E1: =+'Cover Page'!$B$33 -> Suffolk Energy from Waste Facility
A3: Summary of Plant Improvements
A5: Summary of any efficiency improvements that have been completed within the year.
A6: The CRH was returned to service after being isolated for a significant proportion of the previous year. This resulted in an increase in the overall cycle efficiency compared to be previous year. Ongoing combustion operation has resulted in a reduction in boiler excess air set point which will improve efficiency.
A16: Summary of any permit improvement conditions that have been completed within the year and the resulting environmental benefits.
A17: Reports were submitted on the 22/09/2023 to provide mercury and dioxins/furans data as required by permit Improvement Conditions IC2 and IC3: IC2 “The operator shall submit a report to the Environment Agency on whether waste feed to the plant can be proven to have a low and stable mercury content. The report shall have regard to BAT 4 of the BAT conclusions, be based on historic mercury emissions monitoring data and have regard to the Environment Agency Mercury Monitoring Protocol.” IC3 “The operator shall submit a report to the Environment Agency on whether Dioxins emissions to air are stable. The report shall have regard to BAT 4 of the BAT conclusions, be based on historic dioxins emissions monitoring data and have regard to the Environment Agency Dioxins Monitoring Protocol.”
A27: Summary of any changes to the plant or operating techniques which required a variation to the permit and a summary of the resulting environmental impact.
A28: An Environment Agency initiated permit variation was issued 29/11/2023 to update the permit following a statutory review of the permits in the industry sector for incineration. The opportunity was also taken to consolidate the original permit and subsequent variations. The Industrial Emissions Directive (IED) came into force on 7th January 2014 with the requirement to implement all relevant Best Available Techniques (BAT) conclusions as described in the Commission Implementing Decision. The BAT conclusions for incineration were published on 03 December 2019 in the Official Journal of the European Union (L323) following a European Union wide review of BAT, implementing decision 2017/2117/EU of 21 November 2017.
A38: Summary of any other improvements made to the plant or planned to be made and a summary of the resulting environmental benefits.

Sheet Public Liasion
A1: =+'Cover Page'!$B$29 -> Annual Performance Report 2023 | E1: =+'Cover Page'!$B$33 -> Suffolk Energy from Waste Facility
A3: Details of Public & Stakeholder Liaison
A5: Summary of events held during the reporting year.
A6: Date | C6: Description
A7: 2023-05-01 | C7: Suffolk Show. The Suffolk show is a 2 day event where SUEZ join the wider Suffolk Waste Partnership to speak to members of the public about how their waste is treated.
A9: Throughout the year | C9: 60 adult tours and 46 school/community group tours totalling 1,797 visitors. 16 children's outreach events 6 careers events 8 outreach talks for adults
A11: 2023-07-01 | C11: Latitude festival - 3 day event where SUEZ join the wider Suffolk Waste Partnership to speak to members of the public about how their waste is treated. Suffolk Youth Climate conference 1 day event where SUEZ joined other companies and community groups on the 'Green Street' to education the young people on how their waste is treated.
A13: 2023-10-01 | C13: Go Green Go Wild - 1 day event held by Mid Suffolk District Council during half term. SUEZ took their energy bike and engaged with young people and their parents about how their waste is treated
A16: List of events planned for next year
A17: Date | C17: Description
A18: 2024-05-01 | C18: Suffolk Show
A20: Throughout the year | C20: Adult tours and school/community group tours
A22: Throughout the year | C22: Outreach projects
A24: Throughout the year | C24: Careers events
A29: If you wish to be involved in the public liaison programme, please contact Siobhan.o'dell@suez.com

Sheet CO2 N2O
A1: =+'Cover Page'!$B$29 -> Annual Performance Report 2023 | C1: =+'Cover Page'!$B$33 -> Suffolk Energy from Waste Facility
A3: Carbon dioxide emissions and biogenic content of waste inputs | F3: Notes:
A5: Carbon dioxide emissions (all types of plant)
B6: Annual mass of carbon dioxide released | C6: tonnes | D6: 286190.3575
B7: Annual mass of carbon dioxide released per tonne of waste burned | C7: t CO2 / t waste | D7: =D6/'Operational Data'!G21 -> 0.9701456514
B8: Annual mass of carbon dioxide released per MWh of energy exported | C8: t CO2 / MWh export | D8: =D6/'Operational Data'!G25 -> 1.550942022
B9: Description of how annual carbon dioxide mass emission has been calculated. See Note 1 | C9: CEMs CO2, O2 and Flow Measurements | F9: Note 1: Where available, data from CO2 CEMS should be used. Otherwise, only where no CEMS data is available, a suitable emissions factor should be used based on the tonnage of waste burned e.g.0.942 tCO2/t waste as per Tolvik report 2022, or other justified emissions factor - refer to embedded Environment Agency guidance note above or updated version for suitable descriptive text.
A10: Nitrous oxide emissions (only plants which use ammonia or urea to abate NOx emissions)
B11: Annual mass emissions of nitrous oxide | C11: tonnes N2O | D11: 7.348
B12: Description of how annual nitrous oxide mass emission has been calculated See Note 2 | C12: Periodic monitoring as CEMs not installed until late 2023. Flow from CEMs. | F12: Note 2: Where available, data from N2O CEMS should be used. If no CEMS data is available, from periodic monitoring. Otherwise, a suitable emissions factor should be used based on the tonnage of waste burned e.g. 0.0981 kgN20/t waste as per 2021 Pollution Inventory data for plants with urea-based SNCR - refer to embedded Environment Agency guidance note above or updated version for suitable descriptive text.
A13: Total annual carbon dioxide and nitrous oxide emissions. See Note 3. | C13: tonnes CO2e | D13: =D11*298+D6 -> 288380.0615 | F13: Note 3: Total annual carbon dioxide and nitrous oxide emissions reported as carbon dioxide equivalent where 1 tonne nitrous oxide is equivalent to 298 tonne carbon dioxide
A14: Biogenic CO2 emissions (See Note 4) | F14: Note 4: Only plants combusting residual municipal waste, refuse derived fuel or solid recovered fuel
B15: Percentage of total carbon dioxide emissions arising from biogenic waste | C15: % | D15: 0.5198
B16: No. of measurements undertaken | C16: Number | D16: 0
B17: Description of how percentage biogenic carbon dioxide emissions have been measured or calculated. See Note 5 | C17: Based on annual waste sampling and analysis to determine biogenic fraction | F17: Note 5: Examples include direct measurement via C14 method or BIOMA software - refer to embedded Environment Agency guidance note above or updated version for suitable descriptive text, quoting standards where relevant. Otherwise, as an approximation (and in lieu of any more accurate metrics which may be developed in future), the measured or estimated biogenic fraction by net calorific value can be assumed to be the same as the biogenic CO2 fraction of the total CO2 emissions from the plant.
A18: Biogenic fraction of waste feedstock (See Note 4)
B19: Yearly average biogenic percentage of the waste by net calorific value (NCV) | C19: % | D19: 0.5198
B20: If sampling undertaken, no. of samples used to ascertain average biogenic % above | C20: Number | D20: 1
B21: Description of how biogenic percentage (by NCV) has been calculated or estimated. See Note 6 | C21: Based on annual waste sampling and analysis to determine biogenic fraction | F21: Note 6: Where available, data from waste sampling should be used; otherwise, an estimated figure with justification can be used, or a figure assumed on the basis of a national average e.g. 2017 WRAP data for residual waste of 51.8% biogenic energy content - refer to embedded Environment Agency guidance note above or updated version for suitable descriptive text, quoting standards where relevant.
B23: Comments:

Sheet Residue Quality
A1: =+'Cover Page'!$B$29 -> Annual Performance Report 2023 | E1: =+'Cover Page'!$B$33 -> Suffolk Energy from Waste Facility
A3: Residue Quality Monitoring Requirements
A5: Summary of monitoring undertaken and compliance
A6: Routine samples for quarterly IBA analysis were taken on the 16/01/2023, 03/04/2023, 11/07/2023 and the 23/10/2023.
A13: Commentary on any specific events
A14: Date & Event | C14: Description
A15: 2023-04-03 | C15: The IBA sample taken on this date returned a non-compliant TOC result of 3.11%, however there was an LOI result provided for the sample at 3.4%. The TOC was retested on a further sample taken the same date as the original and this returned a compliant result of 2.1%. An additional sample was submitted to the lab dated 31/03/2023 (this was a retained sample held on site) and this also returned a compliant TOC result of 1.91%. The uncertainty of measurement associated with the result from 03/04/2023 potentially provides a compliant result and based on subsequent analysis it is likely that the original result for this sample was erroneous.
A25: Residue Quality Monitoring Results
A26: Parameter (unit) | C26: Limit | D26: Normal Operation
D27: Bottom ash | F27: APC Residues
A28: Loss on Ignition (average %) | C28: <5% | D28: 3.4
A29: Total Organic Carbon (average %) | C29: <3% | D29: 1.87
A30: No. of Assessments Undertaken | C30: --- | D30: 6 | F30: 4
A31: No. of Hazardous Results | C31: --- | D31: 0
A33: Comments :
A34: 16/01/2023 TOC = 2.03% 31/03/2023 TOC = 1.91% 03/04/2023 TOC = 3.11% (retest result 2.1%) 11/07/2023 TOC = 0.17% 23/10/203 TOC = 2.03%

Sheet Water
A1: =+'Cover Page'!$B$29 -> Annual Performance Report 2023 | E1: =+'Cover Page'!$B$33 -> Suffolk Energy from Waste Facility
A3: Emissions to Water
A5: Summary of monitoring undertaken and compliance
A6: There are no discharges to water regulated by the permit. The discharge point S1 has a volume limit of 24m3 per day as detailed in table S3.4. Compliance with the discharge volume limit is reported to the Environment Agency on a quarterly basis in line with permit requirements.
A13: Commentary on any specific events
A14: Date & Event | C14: Description
A22: Emissions to Water / Sewer
A23: Parameter | D23: Monitoring Frequency | F23: Limit | G23: Target | H23: Max. | I23: Average
A24: Water Volume (m3/day) to Sewer | D24: Continuous | F24: 24 m3/day | G24: 0 | H24: 20 | I24: 4.6

Sheet Air (periodic)
A1: =+'Cover Page'!$B$29 -> Annual Performance Report 2023 | E1: =+'Cover Page'!$B$33 -> Suffolk Energy from Waste Facility
A3: Emissions to Air (periodically monitored)
A5: Summary of monitoring undertaken, standards used and compliance | K5: Notes:
A6: Monitoring undertaken in accordance with the standards outlined in Table S3.1 of the Environmental Permit. | K6: Template may require adjustment for any bespoke monitoring requirements of permit - please also check that all default ELV values, reference periods and the stated oxygen reference value match those for your plant, and edit if necessary!
A9: Results of emissions to air that are periodically monitored - oxygen reference 11%
A10: Substance | C10: Ref. Period | D10: Emission Limit Value* | F10: Average | K10: User to add additional tables as necessary, depending on whether quarterly or bi-annual reporting is required for the compliance year
F11: A1 | G11: A2 | H11: A3 | I11: A4 | J11: A5
A12: Hydrogen fluoride | C12: 1 hr | D12: 2 mg/m3 | F12: 0.03 | G12: 0.109
A13: Cd and Th and their compounds | C13: 0.5-8hrs | D13: 0.05 mg/m3 | F13: 0.00135 | G13: 0.00125
A14: Hg and its compounds | C14: 0.5-8hrs | D14: 0.05 mg/m3 | F14: 0.000775 | G14: 0.00151 | K14: * Denotes limits that were in force until 2 December 2023; from 3 December 2023 the following new limits applied (those not listed remained unchanged):
A15: Sb, As, Pb, Cr, Co, Cu, Mn, Ni, V and their compounds | C15: 0.5-8hrs | D15: 0.5 mg/m3 | F15: 0.0135 | G15: 0.03185
A16: Dioxins & Furans (I-TEQ) | C16: 6-8hrs | D16: 0.1 ng/m3 | F16: 0.0018 | G16: 0.0023 | K16: Substance | L16: Reference Period | M16: Emission Limit Value
A17: PCBs (WHO-TEQ Humans / Mammals) | C17: 6-8hrs | D17: None set ng/m3 | F17: 0.000105 | G17: 7.3e-05
A18: PCBs (WHO-TEQ Fish) | C18: 6-8hrs | D18: None set ng/m3 | F18: 5.35e-06 | G18: 4.1e-06 | K18: Hydrogen fluoride | L18: Average of three consecutive measurements of at least 30 minutes each | M18: 1 mg/m3
A19: PCBs (WHO-TEQ Birds) | C19: 6-8hrs | D19: None set ng/m3 | F19: 0.00037 | G19: 0.00048 | K19: Cd and Th and their compounds | L19: Average of three consecutive measurements of at least 30 minutes each | M19: 0.02 mg/m3
A20: Dioxins & Furans (WHO-TEQ Humans / Mammals) | C20: 6-8hrs | D20: None set ng/m3 | F20: 0.00175 | G20: 0.0026 | K20: Hg and its compounds | L20: Average of three consecutive measurements of at least 30 minutes each | M20: 0.02 mg/m3
A21: Dioxins & Furans (WHO-TEQ Fish) | C21: 6-8hrs | D21: None set ng/m3 | F21: 0.00185 | G21: 0.00265 | K21: Sb, As, Pb, Cr, Co, Cu, Mn, Ni, V and their compounds | L21: Average of three consecutive measurements of at least 30 minutes each | M21: 0.3 mg/m3
A22: Dioxins & Furans (WHO-TEQ Birds) | C22: 6-8hrs | D22: None set ng/m3 | F22: 0.00275 | G22: 0.0034 | K22: Dioxins & Furans (I-TEQ) | L22: 6-8hrs | M22: 0.06 ng/m3
A23: Anthanthrene | C23: 6-8hrs | D23: None set µg/m3 | F23: 0.0012 | G23: 0.00135
A24: Benzo(a)anthracene | C24: 6-8hrs | D24: None set µg/m3 | F24: 0.0021 | G24: 0.00205
A25: Benzo(a)pyrene | C25: 6-8hrs | D25: None set µg/m3 | F25: 0.0012 | G25: 0.00135
A26: Benzo(b)fluoranthene | C26: 6-8hrs | D26: None set µg/m3 | F26: 0.0012 | G26: 0.00135
A27: Benzo(b)naptho(2,1-d) thiophene | C27: 6-8hrs | D27: None set µg/m3 | F27: 0.00155 | G27: 0.00165
A28: Benzo(c)phenanthrene | C28: 6-8hrs | D28: None set µg/m3 | F28: 0.0012 | G28: 0.00135
A29: Benzo(ghi)perylene | C29: 6-8hrs | D29: None set µg/m3 | F29: 0.0012 | G29: 0.00135
A30: Benzo(k)fluoranthene | C30: 6-8hrs | D30: None set µg/m3 | F30: 0.0012 | G30: 0.00135
A31: Cholanthrene | C31: 6-8hrs | D31: None set µg/m3 | F31: 0.0012 | G31: 0.00135
A32: Chrysene | C32: 6-8hrs | D32: None set µg/m3 | F32: 0.00215 | G32: 0.0021
A33: Cyclopenta(cd)pyrene | C33: 6-8hrs | D33: None set µg/m3 | F33: 0.0012 | G33: 0.00135
A34: Dibenzo(ai)pyrene | C34: 6-8hrs | D34: None set µg/m3 | F34: 0.0012 | G34: 0.00135
A35: Dibenzo(ah)anthracene | C35: 6-8hrs | D35: None set µg/m3 | F35: 0.0012 | G35: 0.00135
A36: Fluoranthene | C36: 6-8hrs | D36: None set µg/m3 | F36: 0.0403 | G36: 0.03555
A37: Indeno(123-cd) pyrene | C37: 6-8hrs | D37: None set µg/m3 | F37: 0.0012 | G37: 0.00135
A38: Naphthalene | C38: 6-8hrs | D38: None set µg/m3 | F38: 0.121 | G38: 0.1225
A39: Comments :

Sheet Air (CEMS)
A1: =+'Cover Page'!$B$29 -> Annual Performance Report 2023 | I1: =+'Cover Page'!$B$33 -> Suffolk Energy from Waste Facility
A3: Emissions to Air (continuously monitored)
N4: Notes:
A5: Summary of monitoring undertaken, standards used and compliance | N5: Template may require adjustment for any bespoke monitoring requirements of permit
A6: The CEMS set up comprises a multigas analyser, FID analyser and oxygen probe for extractive sampling where flue gases are drawn continuously via a heated line to the analysers in the CEMS room for each incineration line. In situ sampling i.e. where the probes are installed directly into the flue gas flow in the stack is for the dust probes only. The set up for the duty analysers is mirrored by the standby analysers. The standby analysers can be switched between incineration Lines 1 and 2 as required. Continuous monitoring is provided by the CEMS as required by the permit. The CEMS are installed in accordance with EN14181 and relevant Environment Agency guidance. | N6: Please check that all default ELV values match those for your plant and edit if necessary!
N7: Report to 1 decimal place
A11: Results of emissions to air that are continuously monitored (maximum and average values for each line) - oxygen reference 11%
A12: Substance | B12: Reference Period | C12: Emission Limit Value | D12: A1 | F12: A2 | H12: A3 | J12: A4 | L12: A5
D13: Max. | E13: Avg. | F13: Max. | G13: Avg. | H13: Max. | I13: Avg. | J13: Max. | K13: Avg. | L13: Max. | M13: Avg. | N13: ** Denotes limits that were in force until 2 December 2023; from 3 December 2023 the following new limits applied (those not listed remained unchanged):
A14: Oxides of nitrogen | B14: Daily mean | C14: 200 mg/m3 | D14: =NOx!$O$19 -> 183.5 | E14: =NOx!$N$19 -> 172.8966876 | F14: =NOx!$O$34 -> 188.6 | G14: =NOx!N34 -> 174.9610068
B15: ½ hourly mean | C15: 400 mg/m3 | D15: =NOx!$M$19 -> 319.3 | E15: =NOx!$L$19 -> 172.8966876 | F15: =NOx!$M$34 -> 268.1 | G15: =NOx!L34 -> 174.9610068 | N15: Substance | O15: Reference Period | P15: Emission Limit Value
A16: Particulates | B16: Daily mean | C16: 10 mg/m3 | D16: =Particulates!$O$19 -> 1 | E16: =Particulates!$N$19 -> 0.4599224077 | F16: =Particulates!$O$34 -> 2.6 | G16: =Particulates!N34 -> 0.8985509432
B17: ½ hourly mean | C17: 30 mg/m3 | D17: =Particulates!$M$19 -> 2.9 | E17: =Particulates!$L$19 -> 0.4599224077 | F17: =Particulates!$M$34 -> 5 | G17: =Particulates!L34 -> 0.8985509432 | N17: Oxides of nitrogen | O17: Daily mean | P17: 180 mg/m3
A18: Total Organic Carbon | B18: Daily mean | C18: 10 mg/m3 | D18: =TOC!$O$19 -> 0.8 | E18: =TOC!$N$19 -> 0.4863867689 | F18: =TOC!$O$34 -> 1.7 | G18: =TOC!N34 -> 0.4776564814 | N18: Particulates | O18: Daily mean | P18: 5 mg/m3
B19: ½ hourly mean | C19: 20 mg/m3 | D19: =TOC!$M$19 -> 189.1 | E19: =TOC!$L$19 -> 0.4863867689 | F19: =TOC!$M$34 -> 19.4 | G19: =TOC!L34 -> 0.4776564814 | N19: Hydrogen chloride | O19: Daily mean | P19: 8 mg/m3
A20: Hydrogen chloride | B20: Daily mean | C20: 10 mg/m3 | D20: =HCl!$O$19 -> 6.75 | E20: =HCl!$N$19 -> 2.597856939 | F20: =HCl!$O$34 -> 6.71 | G20: =HCl!N34 -> 2.401308948 | N20: Sulphur dioxide | O20: Daily mean | P20: 40 mg/m3
B21: ½ hourly mean | C21: 60 mg/m3 | D21: =HCl!$M$19 -> 26 | E21: =HCl!$L$19 -> 2.597856939 | F21: =HCl!$M$34 -> 26.38 | G21: =HCl!L34 -> 2.401308948 | N21: Ammonia | O21: Daily mean | P21: 15 mg/m3
A22: Sulphur dioxide | B22: Daily mean | C22: 50 mg/m3 | D22: ='SO2'!$O$19 -> 45.4 | E22: ='SO2'!$N$19 -> 32.14254176 | F22: ='SO2'!$O$34 -> 179.9 | G22: ='SO2'!N34 -> 32.49218103
B23: ½ hourly mean | C23: 200 mg/m3 | D23: ='SO2'!$M$19 -> 162.1 | E23: ='SO2'!$L$19 -> 32.14254176 | F23: ='SO2'!$M$34 -> 266.3 | G23: ='SO2'!L34 -> 32.49218103
A24: Carbon monoxide | B24: Daily mean | C24: 50 mg/m3 | D24: ='CO 95% 10 min'!Q16 -> 12.5 | E24: ='CO 95% 10 min'!P16 -> 4.461290323 | F24: ='CO 95% 10 min'!Q31 -> 8.3 | G24: ='CO 95% 10 min'!P31 -> 2.916129032
B25: 95%ile 10-min avg | C25: 150 mg/m3 | D25: ='CO 95% 10 min'!M16 -> 7.586503029 | E25: ='CO 95% 10 min'!N16 -> 4.461290323 | F25: ='CO 95% 10 min'!M31 -> 14.18314648 | G25: ='CO 95% 10 min'!P31 -> 2.916129032
A26: Ammonia | B26: Daily mean | C26: No limit set until 03/12/23
A28: Comments :
A29: Reporting of ammonia (NH3) concentrations by the CEMS was not required by the permit until 03/12/2023.

Sheet HCl
A1: =+'Cover Page'!$B$29 -> Annual Performance Report 2023 | E1: =+'Cover Page'!$B$33 -> Suffolk Energy from Waste Facility
A3: Monitoring of Hydrogen Chloride emissions | D3: Whole Installation | G3: See Notes in Cell Q3 | J3: =+A3 -> Monitoring of Hydrogen Chloride emissions | N3: Per Combustion Line | Q3: Notes:
Q4: User to add logic to complete Whole installation, Table A5:G18. From the data in Per Combustion Line, Table J6:O79, subject to No. of lines installed
A5: mg/Nm3 | B5: 1/2 Hourly Reference Periods | E5: Daily Reference Periods
A6: =+'Cover Page'!C39 -> 2023 | B6: 1/2 hourly HCl ELV | C6: Monthly 1/2 hourly mean | D6: Highest 1/2 hourly maximum | E6: Daily HCl ELV* | F6: Monthly daily mean | G6: Highest daily maximum | J6: =+A6 -> 2023 | K6: mg/Nm3 | L6: Monthly 1/2 hourly mean | M6: Monthly 1/2 hourly maximum | N6: Monthly daily mean | O6: Monthly daily maximum
A7: Jan | B7: 60 | C7: =+AVERAGE(L7,L22) -> 1.954354839 | D7: =MAX(M7,M22) -> 5.27 | E7: 10 | F7: =AVERAGE(N7,N22) -> 1.954354839 | G7: =MAX(O7,O22) -> 3.47 | J7: A1 | K7: Jan | L7: 2.115483871 | M7: 3.99 | N7: 2.115483871 | O7: 2.84
A8: Feb | B8: 60 | C8: =+AVERAGE(L8,L23) -> 1.336430769 | D8: =MAX(M8,M23) -> 26.38 | E8: 10 | F8: =AVERAGE(N8,N23) -> 1.336430769 | G8: =MAX(O8,O23) -> 2.18 | K8: Feb | L8: 1.618461538 | M8: 3.87 | N8: 1.618461538 | O8: 2.18
A9: Mar | B9: 60 | C9: 1.243387097 | D9: =MAX(M9,M24) -> 4.16 | E9: 10 | F9: 1.243387097 | G9: 2.15 | K9: Mar | L9: 1.55 | M9: 2.74 | N9: 1.55 | O9: 2.15 | Q9: Whole Installation table A5:G18:
A10: Apr | B10: 60 | C10: 1.420909091 | D10: =MAX(M10,M25) -> 6.1 | E10: 10 | F10: 1.420909091 | G10: 3.2 | K10: Apr | L10: 1.841818182 | M10: 6.1 | N10: 1.841818182 | O10: 3.2 | Q10: Mean: for 1/2 hourly and daily periods calculate mean of values across all operational combustion lines for the month
A11: May | B11: 60 | C11: 1.805870279 | D11: =MAX(M11,M26) -> 11.41 | E11: 10 | F11: 1.805870279 | G11: 5.29 | K11: May | L11: 2.573809524 | M11: 11.41 | N11: 2.573809524 | O11: 5.29
A12: Jun | B12: 60 | C12: 2.061833333 | D12: 7.04 | E12: 10 | F12: 2.061833333 | G12: 4.87 | K12: Jun | L12: 2.397 | M12: 7.04 | N12: 2.397 | O12: 4.87
A13: Jul | B13: 60 | C13: 2.872380423 | D13: 10.21 | E13: 10 | F13: 2.872380423 | G13: 6.33 | K13: Jul | L13: 2.883793103 | M13: 7.6 | N13: 2.883793103 | O13: 5.5 | Q13: Maximum: for 1/2 hourly and daily periods use the highest value across all operational combustion lines for the month
A14: Aug | B14: 60 | C14: 4.963225806 | D14: 24.35 | E14: 10 | F14: 4.963225806 | G14: 6.71 | K14: Aug | L14: 4.53483871 | M14: 18.85 | N14: 4.53483871 | O14: 6.42
A15: Sep | B15: 60 | C15: 5.003666667 | D15: 26 | E15: 10 | F15: 5.003666667 | G15: 6.75 | K15: Sep | L15: 4.69 | M15: 26 | N15: 4.69 | O15: 6.75
A16: Oct | B16: 60 | C16: 3.793225806 | D16: 12.84 | E16: 10 | F16: 3.793225806 | G16: 6.01 | K16: Oct | L16: 3.203548387 | M16: 9.99 | N16: 3.203548387 | O16: 5.16
A17: Nov | B17: 60 | C17: 1.693904762 | D17: 8.36 | E17: 10 | F17: 1.693904762 | G17: 3.56 | K17: Nov | L17: 1.897142857 | M17: 4.45 | N17: 1.897142857 | O17: 3.13
A18: Dec | B18: 60 | C18: 1.845806452 | D18: 6.9 | E18: 8 | F18: 1.845806452 | G18: 3.98 | K18: Dec | L18: 1.868387097 | M18: 5.79 | N18: 1.868387097 | O18: 3.15
E19: * ELV reduced to 8 mg/Nm3 on 3 December 2023 | K19: Annual | L19: =AVERAGE(L7:L18) -> 2.597856939 | M19: =MAX(M7:M18) -> 26 | N19: =AVERAGE(N7:N18) -> 2.597856939 | O19: =MAX(O7:O18) -> 6.75
J21: =+A6 -> 2023 | K21: mg/Nm3 | L21: Monthly 1/2 hourly mean | M21: Monthly 1/2 hourly maximum | N21: Monthly daily mean | O21: Monthly daily maximum
J22: A2 | K22: Jan | L22: 1.793225806 | M22: 5.27 | N22: 1.793225806 | O22: 3.47
K23: Feb | L23: 1.0544 | M23: 26.38 | N23: 1.0544 | O23: 1.81
K24: Mar | L24: 0.9367741935 | M24: 4.16 | N24: 0.9367741935 | O24: 1.51
K25: Apr | L25: 1 | M25: 2.25 | N25: 1 | O25: 1.6
K26: May | L26: 1.037931034 | M26: 5.43 | N26: 1.037931034 | O26: 3.09
K27: Jun | L27: 1.726666667 | M27: 6.35 | N27: 1.726666667 | O27: 3.74
K28: Jul | L28: 2.860967742 | M28: 10.21 | N28: 2.860967742 | O28: 6.33
K29: Aug | L29: 5.391612903 | M29: 24.35 | N29: 5.391612903 | O29: 6.71
K30: Sep | L30: 5.317333333 | M30: 16.69 | N30: 5.317333333 | O30: 6.31
K31: Oct | L31: 4.382903226 | M31: 12.84 | N31: 4.382903226 | O31: 6.01
K32: Nov | L32: 1.490666667 | M32: 8.36 | N32: 1.490666667 | O32: 3.56
K33: Dec | L33: 1.823225806 | M33: 6.9 | N33: 1.823225806 | O33: 3.98
K34: Annual | L34: =AVERAGE(L22:L33) -> 2.401308948 | M34: =MAX(M22:M33) -> 26.38 | N34: =AVERAGE(N22:N33) -> 2.401308948 | O34: =MAX(O22:O33) -> 6.71
J36: =+A6 -> 2023 | K36: mg/Nm3 | L36: Monthly 1/2 hourly mean | M36: Monthly 1/2 hourly maximum | N36: Monthly daily mean | O36: Monthly daily maximum
J37: A3 | K37: Jan
K38: Feb
K39: Mar
K40: Apr
K41: May
K42: Jun
K43: Jul
K44: Aug
K45: Sep
K46: Oct
K47: Nov
A48: Comments : | K48: Dec
K49: Annual | L49: =AVERAGE(L37:L48) ->  | M49: =MAX(M37:M48) -> 0 | N49: =AVERAGE(N37:N48) ->  | O49: =MAX(O37:O48) -> 0
J51: =+A6 -> 2023 | K51: mg/Nm3 | L51: Monthly 1/2 hourly mean | M51: Monthly 1/2 hourly maximum | N51: Monthly daily mean | O51: Monthly daily maximum
J52: A4 | K52: Jan
K53: Feb
K54: Mar
K55: Apr
K56: May
K57: Jun
K58: Jul
K59: Aug
K60: Sep
K61: Oct
K62: Nov
K63: Dec
K64: Annual | L64: =AVERAGE(L52:L63) ->  | M64: =MAX(M52:M63) -> 0 | N64: =AVERAGE(N52:N63) ->  | O64: =MAX(O52:O63) -> 0
J66: =+A6 -> 2023 | K66: mg/Nm3 | L66: Monthly 1/2 hourly mean | M66: Monthly 1/2 hourly maximum | N66: Monthly daily mean | O66: Monthly daily maximum
J67: A5 | K67: Jan
K68: Feb
K69: Mar
K70: Apr
K71: May
K72: Jun
K73: Jul
K74: Aug
K75: Sep
K76: Oct
K77: Nov
K78: Dec
K79: Annual | L79: =AVERAGE(L67:L78) ->  | M79: =MAX(M67:M78) -> 0 | N79: =AVERAGE(N67:N78) ->  | O79: =MAX(O67:O78) -> 0

Sheet SO2
A1: =+'Cover Page'!$B$29 -> Annual Performance Report 2023 | E1: =+'Cover Page'!$B$33 -> Suffolk Energy from Waste Facility
A3: Monitoring of Sulphur dioxide emissions | D3: Whole Installation | G3: See Notes in Cell Q3 | J3: =+A3 -> Monitoring of Sulphur dioxide emissions | N3: Per Combustion Line | Q3: Notes:
Q4: User to add logic to complete Whole installation, Table A5:G18. From the data in Per Combustion Line, Table J6:O79, subject to No. of lines installed
A5: mg/Nm3 | B5: 1/2 Hourly Reference Periods | E5: Daily Reference Periods
A6: =+'Cover Page'!C39 -> 2023 | B6: 1/2 hourly SO2 ELV | C6: Monthly 1/2 hourly mean | D6: Highest 1/2 hourly maximum | E6: Daily SO2 ELV* | F6: Monthly daily mean | G6: Highest daily maximum | J6: =+A6 -> 2023 | K6: mg/Nm3 | L6: Monthly 1/2 hourly mean | M6: Monthly 1/2 hourly maximum | N6: Monthly daily mean | O6: Monthly daily maximum
A7: Jan | B7: 200 | C7: =AVERAGE(L7,L22) -> 39.54354839 | D7: =MAX(M7,M22) -> 164.1 | E7: 50 | F7: =AVERAGE(N7,N22) -> 39.54354839 | G7: =MAX(O7,O22) -> 46.1 | J7: A1 | K7: Jan | L7: 39.53870968 | M7: 139.4 | N7: 39.53870968 | O7: 43.7
A8: Feb | B8: 200 | C8: =AVERAGE(L8,L23) -> 43.54638462 | D8: =MAX(M8,M23) -> 266.3 | E8: 50 | F8: =AVERAGE(N8,N23) -> 43.54638462 | G8: =MAX(O8,O23) -> 179.9 | K8: Feb | L8: 40.48076923 | M8: 103.5 | N8: 40.48076923 | O8: 45.4
A9: Mar | B9: 200 | C9: 39.78870968 | D9: =MAX(M9,M24) -> 162.1 | E9: 50 | F9: 39.78870968 | G9: =MAX(O9,O24) -> 44.8 | K9: Mar | L9: 39.98709677 | M9: 162.1 | N9: 39.98709677 | O9: 44.7 | Q9: Whole Installation table A5:G18:
A10: Apr | B10: 200 | C10: 35.56363636 | D10: =MAX(M10,M25) -> 152.9 | E10: 50 | F10: 35.56363636 | G10: =MAX(O10,O25) -> 41.5 | K10: Apr | L10: 37.39090909 | M10: 152.9 | N10: 37.39090909 | O10: 41.5 | Q10: Mean: for 1/2 hourly and daily periods calculate mean of values across all operational combustion lines for the month
A11: May | B11: 200 | C11: 31.74408867 | D11: =MAX(M11,M26) -> 73.3 | E11: 50 | F11: 31.74408867 | G11: 36.8 | K11: May | L11: 29.55714286 | M11: 67.1 | N11: 29.55714286 | O11: 36.1
A12: Jun | B12: 200 | C12: 32.04166667 | D12: 87.2 | E12: 50 | F12: 32.04166667 | G12: 39.9 | K12: Jun | L12: 29.47333333 | M12: 87.2 | N12: 29.47333333 | O12: 39.9
A13: Jul | B13: 200 | C13: 32.12545977 | D13: 97.8 | E13: 50 | F13: 32.12545977 | G13: 38.5 | K13: Jul | L13: 32.52758621 | M13: 97.8 | N13: 32.52758621 | O13: 38.5 | Q13: Maximum: for 1/2 hourly and daily periods use the highest value across all operational combustion lines for the month
A14: Aug | B14: 200 | C14: 25.46612903 | D14: 75.7 | E14: 50 | F14: 25.46612903 | G14: 36.6 | K14: Aug | L14: 27.59354839 | M14: 75.7 | N14: 27.59354839 | O14: 36.6
A15: Sep | B15: 200 | C15: 26.85166667 | D15: 135.6 | E15: 50 | F15: 26.85166667 | G15: 37.2 | K15: Sep | L15: 28.35 | M15: 135.6 | N15: 28.35 | O15: 35.6
A16: Oct | B16: 200 | C16: 24.15483871 | D16: 66.7 | E16: 50 | F16: 24.15483871 | G16: 33.4 | K16: Oct | L16: 24.73548387 | M16: 65.8 | N16: 24.73548387 | O16: 31.2
A17: Nov | B17: 200 | C17: 28.43059524 | D17: 122.3 | E17: 50 | F17: 28.43059524 | G17: 33.2 | K17: Nov | L17: 27.71785714 | M17: 113.4 | N17: 27.71785714 | O17: 31.2
A18: Dec | B18: 200 | C18: 28.5516129 | D18: 183 | E18: 40 | F18: 28.5516129 | G18: 36.2 | K18: Dec | L18: 28.35806452 | M18: 142.2 | N18: 28.35806452 | O18: 34.6
E19: * ELV reduced to 40 mg/Nm3 on 3 December 2023 | K19: Annual | L19: =AVERAGE(L7:L18) -> 32.14254176 | M19: =MAX(M7:M18) -> 162.1 | N19: =AVERAGE(N7:N18) -> 32.14254176 | O19: =MAX(O7:O18) -> 45.4
J21: =+A6 -> 2023 | K21: mg/Nm3 | L21: Monthly 1/2 hourly mean | M21: Monthly 1/2 hourly maximum | N21: Monthly daily mean | O21: Monthly daily maximum
J22: A2 | K22: Jan | L22: 39.5483871 | M22: 164.1 | N22: 39.5483871 | O22: 46.1
K23: Feb | L23: 46.612 | M23: 266.3 | N23: 46.612 | O23: 179.9
K24: Mar | L24: 39.59032258 | M24: 158.3 | N24: 39.59032258 | O24: 44.8
K25: Apr | L25: 33.73636364 | M25: 74.1 | N25: 33.73636364 | O25: 40.8
K26: May | L26: 33.93103448 | M26: 73.3 | N26: 33.93103448 | O26: 36.8
K27: Jun | L27: 34.61 | M27: 60.9 | N27: 34.61 | O27: 37.3
K28: Jul | L28: 31.72333333 | M28: 85.1 | N28: 31.72333333 | O28: 37.8
K29: Aug | L29: 23.33870968 | M29: 55.2 | N29: 23.33870968 | O29: 34.3
K30: Sep | L30: 25.35333333 | M30: 99.4 | N30: 25.35333333 | O30: 37.2
K31: Oct | L31: 23.57419355 | M31: 66.7 | N31: 23.57419355 | O31: 33.4
K32: Nov | L32: 29.14333333 | M32: 122.3 | N32: 29.14333333 | O32: 33.2
K33: Dec | L33: 28.74516129 | M33: 183 | N33: 28.74516129 | O33: 36.2
K34: Annual | L34: =AVERAGE(L22:L33) -> 32.49218103 | M34: =MAX(M22:M33) -> 266.3 | N34: =AVERAGE(N22:N33) -> 32.49218103 | O34: =MAX(O22:O33) -> 179.9
J36: =+A6 -> 2023 | K36: mg/Nm3 | L36: Monthly 1/2 hourly mean | M36: Monthly 1/2 hourly maximum | N36: Monthly daily mean | O36: Monthly daily maximum
J37: A3 | K37: Jan
K38: Feb
K39: Mar
K40: Apr
K41: May
K42: Jun
K43: Jul
K44: Aug
K45: Sep
K46: Oct
K47: Nov
A48: Comments : | K48: Dec
A49: The elevated SO2 result recorded during February 2023 is dicussed further in the 'Permit Compliance' tab. | K49: Annual | L49: =AVERAGE(L37:L48) ->  | M49: =MAX(M37:M48) -> 0 | N49: =AVERAGE(N37:N48) ->  | O49: =MAX(O37:O48) -> 0
J51: =+A6 -> 2023 | K51: mg/Nm3 | L51: Monthly 1/2 hourly mean | M51: Monthly 1/2 hourly maximum | N51: Monthly daily mean | O51: Monthly daily maximum
J52: A4 | K52: Jan
K53: Feb
K54: Mar
K55: Apr
K56: May
K57: Jun
K58: Jul
K59: Aug
K60: Sep
K61: Oct
K62: Nov
K63: Dec
K64: Annual | L64: =AVERAGE(L52:L63) ->  | M64: =MAX(M52:M63) -> 0 | N64: =AVERAGE(N52:N63) ->  | O64: =MAX(O52:O63) -> 0
J66: =+A6 -> 2023 | K66: mg/Nm3 | L66: Monthly 1/2 hourly mean | M66: Monthly 1/2 hourly maximum | N66: Monthly daily mean | O66: Monthly daily maximum
J67: A5 | K67: Jan
K68: Feb
K69: Mar
K70: Apr
K71: May
K72: Jun
K73: Jul
K74: Aug
K75: Sep
K76: Oct
K77: Nov
K78: Dec
K79: Annual | L79: =AVERAGE(L67:L78) ->  | M79: =MAX(M67:M78) -> 0 | N79: =AVERAGE(N67:N78) ->  | O79: =MAX(O67:O78) -> 0

Sheet NOx
A1: =+'Cover Page'!$B$29 -> Annual Performance Report 2023 | E1: =+'Cover Page'!$B$33 -> Suffolk Energy from Waste Facility
A3: Monitoring of Oxides of Nitrogen emissions | D3: Whole Installation | G3: See Notes in Cell Q3 | J3: =+A3 -> Monitoring of Oxides of Nitrogen emissions | N3: Per Combustion Line | Q3: Notes:
Q4: User to add logic to complete Whole installation, Table A5:G18. From the data in Per Combustion Line, Table J6:O79, subject to No. of lines installed
A5: mg/Nm3 | B5: 1/2 Hourly Reference Periods | E5: Daily Reference Periods
A6: =+'Cover Page'!C39 -> 2023 | B6: 1/2 hourly NOx ELV | C6: Monthly 1/2 hourly mean | D6: Highest 1/2 hourly maximum | E6: Daily NOx ELV* | F6: Monthly daily mean | G6: Highest daily maximum | J6: =+A6 -> 2023 | K6: mg/Nm3 | L6: Monthly 1/2 hourly mean | M6: Monthly 1/2 hourly maximum | N6: Monthly daily mean | O6: Monthly daily maximum
A7: Jan | B7: 400 | C7: =AVERAGE(L7,L22) -> 180.3725806 | D7: =MAX(M7,M22) -> 296.2 | E7: 200 | F7: =AVERAGE(N7,N22) -> 180.3725806 | G7: =MAX(O7,O22) -> 185.8 | J7: A1 | K7: Jan | L7: 180.3419355 | M7: 296.2 | N7: 180.3419355 | O7: 183.5
A8: Feb | B8: 400 | C8: =AVERAGE(L8,L23) -> 179.6983077 | D8: =MAX(M8,M23) -> 319.3 | E8: 200 | F8: =AVERAGE(N8,N23) -> 179.6983077 | G8: =MAX(O8,O23) -> 180.8 | K8: Feb | L8: 179.5846154 | M8: 319.3 | N8: 179.5846154 | O8: 180.3
A9: Mar | B9: 400 | C9: 179.8854839 | D9: 221.2 | E9: 200 | F9: 179.8854839 | G9: 181.1 | K9: Mar | L9: 179.8741935 | M9: 212 | N9: 179.8741935 | O9: 180.9 | Q9: Whole Installation table A5:G18:
A10: Apr | B10: 400 | C10: 179.1068182 | D10: 214.5 | E10: 200 | F10: 179.1068182 | G10: 181.4 | K10: Apr | L10: 178.6590909 | M10: 214.5 | N10: 178.6590909 | O10: 181.4 | Q10: Mean: for 1/2 hourly and daily periods calculate mean of values across all operational combustion lines for the month
A11: May | B11: 400 | C11: 179.8311166 | D11: 265.7 | E11: 200 | F11: 179.8311166 | G11: 188.6 | K11: May | L11: 180.0380952 | M11: 221.6 | N11: 180.0380952 | O11: 180.9
A12: Jun | B12: 400 | C12: 168.14 | D12: 243.7 | E12: 200 | F12: 168.14 | G12: 183.5 | K12: Jun | L12: 156.1766667 | M12: 243.7 | N12: 156.1766667 | O12: 183.5
A13: Jul | B13: 400 | C13: 180.0557842 | D13: 225.5 | E13: 200 | F13: 180.0557842 | G13: 183 | K13: Jul | L13: 179.9793103 | M13: 208.1 | N13: 179.9793103 | O13: 181.2 | Q13: Maximum: for 1/2 hourly and daily periods use the highest value across all operational combustion lines for the month
A14: Aug | B14: 400 | C14: 177.0790323 | D14: 248.3 | E14: 200 | F14: 177.0790323 | G14: 181.9 | K14: Aug | L14: 179.9225806 | M14: 248.3 | N14: 179.9225806 | O14: 181.9
A15: Sep | B15: 400 | C15: 177.6333333 | D15: 220.8 | E15: 200 | F15: 177.6333333 | G15: 182.3 | K15: Sep | L15: 177.4966667 | M15: 212.7 | N15: 177.4966667 | O15: 181.2
A16: Oct | B16: 400 | C16: 153.9516129 | D16: 258.4 | E16: 200 | F16: 153.9516129 | G16: 168.9 | K16: Oct | L16: 152.0096774 | M16: 258.4 | N16: 152.0096774 | O16: 165.1
A17: Nov | B17: 400 | C17: 165.955 | D17: 240.9 | E17: 200 | F17: 165.955 | G17: 180.2 | K17: Nov | L17: 165.5 | M17: 240.9 | N17: 165.5 | O17: 169.2
A18: Dec | B18: 400 | C18: 165.4370968 | D18: 268.1 | E18: 180 | F18: 165.4370968 | G18: 171.8 | K18: Dec | L18: 165.1774194 | M18: 218.5 | N18: 165.1774194 | O18: 170.5
E19: * ELV reduced to 180 mg/Nm3 on 3 December 2023 | K19: Annual | L19: =AVERAGE(L7:L18) -> 172.8966876 | M19: =MAX(M7:M18) -> 319.3 | N19: =AVERAGE(N7:N18) -> 172.8966876 | O19: =MAX(O7:O18) -> 183.5
J21: =+A6 -> 2023 | K21: mg/Nm3 | L21: Monthly 1/2 hourly mean | M21: Monthly 1/2 hourly maximum | N21: Monthly daily mean | O21: Monthly daily maximum
J22: A2 | K22: Jan | L22: 180.4032258 | M22: 239.6 | N22: 180.4032258 | O22: 185.8
K23: Feb | L23: 179.812 | M23: 218 | N23: 179.812 | O23: 180.8
K24: Mar | L24: 179.8967742 | M24: 221.2 | N24: 179.8967742 | O24: 181.1
K25: Apr | L25: 179.5545455 | M25: 194.1 | N25: 179.5545455 | O25: 180.2
K26: May | L26: 179.6241379 | M26: 265.7 | N26: 179.6241379 | O26: 188.6
K27: Jun | L27: 180.1033333 | M27: 225.9 | N27: 180.1033333 | O27: 181.8
K28: Jul | L28: 180.1322581 | M28: 225.5 | N28: 180.1322581 | O28: 183
K29: Aug | L29: 174.2354839 | M29: 207.8 | N29: 174.2354839 | O29: 180.6
K30: Sep | L30: 177.77 | M30: 220.8 | N30: 177.77 | O30: 182.3
K31: Oct | L31: 155.8935484 | M31: 226 | N31: 155.8935484 | O31: 168.9
K32: Nov | L32: 166.41 | M32: 233.2 | N32: 166.41 | O32: 180.2
K33: Dec | L33: 165.6967742 | M33: 268.1 | N33: 165.6967742 | O33: 171.8
K34: Annual | L34: =AVERAGE(L22:L33) -> 174.9610068 | M34: =MAX(M22:M33) -> 268.1 | N34: =AVERAGE(N22:N33) -> 174.9610068 | O34: =MAX(O22:O33) -> 188.6
J36: =+A6 -> 2023 | K36: mg/Nm3 | L36: Monthly 1/2 hourly mean | M36: Monthly 1/2 hourly maximum | N36: Monthly daily mean | O36: Monthly daily maximum
J37: A3 | K37: Jan
K38: Feb
K39: Mar
K40: Apr
K41: May
K42: Jun
K43: Jul
K44: Aug
K45: Sep
K46: Oct
K47: Nov
A48: Comments : | K48: Dec
K49: Annual | L49: =AVERAGE(L37:L48) ->  | M49: =MAX(M37:M48) -> 0 | N49: =AVERAGE(N37:N48) ->  | O49: =MAX(O37:O48) -> 0
J51: =+A6 -> 2023 | K51: mg/Nm3 | L51: Monthly 1/2 hourly mean | M51: Monthly 1/2 hourly maximum | N51: Monthly daily mean | O51: Monthly daily maximum
J52: A4 | K52: Jan
K53: Feb
K54: Mar
K55: Apr
K56: May
K57: Jun
K58: Jul
K59: Aug
K60: Sep
K61: Oct
K62: Nov
K63: Dec
K64: Annual | L64: =AVERAGE(L52:L63) ->  | M64: =MAX(M52:M63) -> 0 | N64: =AVERAGE(N52:N63) ->  | O64: =MAX(O52:O63) -> 0
J66: =+A6 -> 2023 | K66: mg/Nm3 | L66: Monthly 1/2 hourly mean | M66: Monthly 1/2 hourly maximum | N66: Monthly daily mean | O66: Monthly daily maximum
J67: A5 | K67: Jan
K68: Feb
K69: Mar
K70: Apr
K71: May
K72: Jun
K73: Jul
K74: Aug
K75: Sep
K76: Oct
K77: Nov
K78: Dec
K79: Annual | L79: =AVERAGE(L67:L78) ->  | M79: =MAX(M67:M78) -> 0 | N79: =AVERAGE(N67:N78) ->  | O79: =MAX(O67:O78) -> 0

Sheet TOC
A1: =+'Cover Page'!$B$29 -> Annual Performance Report 2023 | E1: =+'Cover Page'!$B$33 -> Suffolk Energy from Waste Facility
A3: Monitoring of Total organic carbon emissions | D3: Whole Installation | G3: See Notes in Cell Q3 | J3: =+A3 -> Monitoring of Total organic carbon emissions | N3: Per Combustion Line | Q3: Notes:
Q4: User to add logic to complete Whole installation, Table A5:G18. From the data in Per Combustion Line, Table J6:O79, subject to No. of lines installed
A5: mg/Nm3 | B5: 1/2 Hourly Reference Periods | E5: Daily Reference Periods
A6: =+'Cover Page'!C39 -> 2023 | B6: 1/2 hourly TOC ELV | C6: Monthly 1/2 hourly mean | D6: Highest 1/2 hourly maximum | E6: Daily TOC ELV | F6: Monthly daily mean | G6: Highest daily maximum | J6: =+A6 -> 2023 | K6: mg/Nm3 | L6: Monthly 1/2 hourly mean | M6: Monthly 1/2 hourly maximum | N6: Monthly daily mean | O6: Monthly daily maximum
A7: Jan | B7: 20 | C7: =AVERAGE(L7,L22) -> 0.3741935484 | D7: =MAX(M7,M22) -> 4.4 | E7: 10 | F7: =AVERAGE(N7,N22) -> 0.3741935484 | G7: =MAX(O7,O22) -> 0.5 | J7: A1 | K7: Jan | L7: 0.3903225806 | M7: 4.4 | N7: 0.3903225806 | O7: 0.5
A8: Feb | B8: 20 | C8: =AVERAGE(L8,L23) -> 0.6889230769 | D8: =MAX(M8,M23) -> 189.1 | E8: 10 | F8: =AVERAGE(N8,N23) -> 0.6889230769 | G8: =MAX(O8,O23) -> 0.6 | K8: Feb | L8: 0.9538461538 | M8: 189.1 | N8: 0.9538461538 | O8: 0.5
A9: Mar | B9: 20 | C9: 0.4096774194 | D9: =MAX(M9,M24) -> 8.1 | E9: 10 | F9: 0.4096774194 | G9: 0.7 | K9: Mar | L9: 0.4161290323 | M9: 8.1 | N9: 0.4161290323 | O9: 0.6 | Q9: Whole Installation table A5:G18:
A10: Apr | B10: 20 | C10: 0.4454545455 | D10: 11.7 | E10: 10 | F10: 0.4454545455 | G10: 0.7 | K10: Apr | L10: 0.4727272727 | M10: 11.7 | N10: 0.4727272727 | O10: 0.7 | Q10: Mean: for 1/2 hourly and daily periods calculate mean of values across all operational combustion lines for the month
A11: May | B11: 20 | C11: 0.5840722496 | D11: 5.6 | E11: 10 | F11: 0.5840722496 | G11: 0.9 | K11: May | L11: 0.5095238095 | M11: 5.6 | N11: 0.5095238095 | O11: 0.6
A12: Jun | B12: 20 | C12: 0.4866666667 | D12: 8 | E12: 10 | F12: 0.4866666667 | G12: 0.8 | K12: Jun | L12: 0.48 | M12: 8 | N12: 0.48 | O12: 0.8
A13: Jul | B13: 20 | C13: 0.6086206897 | D13: 10.6 | E13: 10 | F13: 0.6086206897 | G13: 0.9 | K13: Jul | L13: 0.6172413793 | M13: 10.6 | N13: 0.6172413793 | O13: 0.8 | Q13: Maximum: for 1/2 hourly and daily periods use the highest value across all operational combustion lines for the month
A14: Aug | B14: 20 | C14: 0.4387096774 | D14: 18.9 | E14: 10 | F14: 0.4387096774 | G14: 1.7 | K14: Aug | L14: 0.3870967742 | M14: 18.9 | N14: 0.3870967742 | O14: 0.7
A15: Sep | B15: 20 | C15: 0.4683333333 | D15: 10 | E15: 10 | F15: 0.4683333333 | G15: 0.7 | K15: Sep | L15: 0.4666666667 | M15: 10 | N15: 0.4666666667 | O15: 0.7
A16: Oct | B16: 20 | C16: 0.45 | D16: 16.2 | E16: 10 | F16: 0.45 | G16: 0.8 | K16: Oct | L16: 0.4322580645 | M16: 16.2 | N16: 0.4322580645 | O16: 0.8
A17: Nov | B17: 20 | C17: 0.4392857143 | D17: 19.4 | E17: 10 | F17: 0.4392857143 | G17: 0.9 | K17: Nov | L17: 0.3785714286 | M17: 12.2 | N17: 0.3785714286 | O17: 0.6
A18: Dec | B18: 20 | C18: 0.3903225806 | D18: 16.3 | E18: 10 | F18: 0.3903225806 | G18: 0.8 | K18: Dec | L18: 0.3322580645 | M18: 3.4 | N18: 0.3322580645 | O18: 0.6
K19: Annual | L19: =AVERAGE(L7:L18) -> 0.4863867689 | M19: =MAX(M7:M18) -> 189.1 | N19: =AVERAGE(N7:N18) -> 0.4863867689 | O19: =MAX(O7:O18) -> 0.8
J21: =+A6 -> 2023 | K21: mg/Nm3 | L21: Monthly 1/2 hourly mean | M21: Monthly 1/2 hourly maximum | N21: Monthly daily mean | O21: Monthly daily maximum
J22: A2 | K22: Jan | L22: 0.3580645161 | M22: 1.6 | N22: 0.3580645161 | O22: 0.5
K23: Feb | L23: 0.424 | M23: 4.4 | N23: 0.424 | O23: 0.6
K24: Mar | L24: 0.4032258065 | M24: 6.3 | N24: 0.4032258065 | O24: 0.7
K25: Apr | L25: 0.4181818182 | M25: 1.4 | N25: 0.4181818182 | O25: 0.6
K26: May | L26: 0.6586206897 | M26: 2.8 | N26: 0.6586206897 | O26: 0.9
K27: Jun | L27: 0.4933333333 | M27: 6.1 | N27: 0.4933333333 | O27: 0.7
K28: Jul | L28: 0.6 | M28: 2.8 | N28: 0.6 | O28: 0.9
K29: Aug | L29: 0.4903225806 | M29: 5.4 | N29: 0.4903225806 | O29: 1.7
K30: Sep | L30: 0.47 | M30: 7.6 | N30: 0.47 | O30: 0.7
K31: Oct | L31: 0.4677419355 | M31: 10.2 | N31: 0.4677419355 | O31: 0.7
K32: Nov | L32: 0.5 | M32: 19.4 | N32: 0.5 | O32: 0.9
K33: Dec | L33: 0.4483870968 | M33: 16.3 | N33: 0.4483870968 | O33: 0.8
K34: Annual | L34: =AVERAGE(L22:L33) -> 0.4776564814 | M34: =MAX(M22:M33) -> 19.4 | N34: =AVERAGE(N22:N33) -> 0.4776564814 | O34: =MAX(O22:O33) -> 1.7
J36: =+A6 -> 2023 | K36: mg/Nm3 | L36: Monthly 1/2 hourly mean | M36: Monthly 1/2 hourly maximum | N36: Monthly daily mean | O36: Monthly daily maximum
J37: A3 | K37: Jan
K38: Feb
K39: Mar
K40: Apr
K41: May
K42: Jun
K43: Jul
K44: Aug
K45: Sep
K46: Oct
K47: Nov
A48: Comments : | K48: Dec
A49: The elevated TOC results relate to a power loss incident on the 07/02/2023 as discussed on the 'Permit Compliance' tab. | K49: Annual | L49: =AVERAGE(L37:L48) ->  | M49: =MAX(M37:M48) -> 0 | N49: =AVERAGE(N37:N48) ->  | O49: =MAX(O37:O48) -> 0
J51: =+A6 -> 2023 | K51: mg/Nm3 | L51: Monthly 1/2 hourly mean | M51: Monthly 1/2 hourly maximum | N51: Monthly daily mean | O51: Monthly daily maximum
J52: A4 | K52: Jan
K53: Feb
K54: Mar
K55: Apr
K56: May
K57: Jun
K58: Jul
K59: Aug
K60: Sep
K61: Oct
K62: Nov
K63: Dec
K64: Annual | L64: =AVERAGE(L52:L63) ->  | M64: =MAX(M52:M63) -> 0 | N64: =AVERAGE(N52:N63) ->  | O64: =MAX(O52:O63) -> 0
J66: =+A6 -> 2023 | K66: mg/Nm3 | L66: Monthly 1/2 hourly mean | M66: Monthly 1/2 hourly maximum | N66: Monthly daily mean | O66: Monthly daily maximum
J67: A5 | K67: Jan
K68: Feb
K69: Mar
K70: Apr
K71: May
K72: Jun
K73: Jul
K74: Aug
K75: Sep
K76: Oct
K77: Nov
K78: Dec
K79: Annual | L79: =AVERAGE(L67:L78) ->  | M79: =MAX(M67:M78) -> 0 | N79: =AVERAGE(N67:N78) ->  | O79: =MAX(O67:O78) -> 0

Sheet Particulates
A1: =+'Cover Page'!$B$29 -> Annual Performance Report 2023 | E1: =+'Cover Page'!$B$33 -> Suffolk Energy from Waste Facility
A3: Monitoring of Particulate matter emissions | D3: Whole Installation | G3: See Notes in Cell Q3 | J3: =+A3 -> Monitoring of Particulate matter emissions | N3: Per Combustion Line | Q3: Notes:
Q4: User to add logic to complete Whole installation, Table A5:G18. From the data in Per Combustion Line, Table J6:O79, subject to No. of lines installed
A5: mg/Nm3 | B5: 1/2 Hourly Reference Periods | E5: Daily Reference Periods
A6: =+'Cover Page'!C39 -> 2023 | B6: 1/2 hourly PM ELV | C6: Monthly 1/2 hourly mean | D6: Highest 1/2 hourly maximum | E6: Daily PM ELV* | F6: Monthly daily mean | G6: Highest daily maximum | J6: =+A6 -> 2023 | K6: mg/Nm3 | L6: Monthly 1/2 hourly mean | M6: Monthly 1/2 hourly maximum | N6: Monthly daily mean | O6: Monthly daily maximum
A7: Jan | B7: 30 | C7: =AVERAGE(L7,L22) -> 0.7887096774 | D7: =MAX(M7,M22) -> 1.3 | E7: 10 | F7: =AVERAGE(N7,N22) -> 0.7887096774 | G7: =MAX(O7,O22) -> 1.1 | J7: A1 | K7: Jan | L7: 0.5419354839 | M7: 1 | N7: 0.5419354839 | O7: 0.8
A8: Feb | B8: 30 | C8: =AVERAGE(L8,L23) -> 0.7076923077 | D8: =MAX(M8,M23) -> 3.1 | E8: 10 | F8: =AVERAGE(N8,N23) -> 0.7076923077 | G8: =MAX(O8,O23) -> 1.3 | K8: Feb | L8: 0.4153846154 | M8: 1.3 | N8: 0.4153846154 | O8: 0.6
A9: Mar | B9: 30 | C9: 0.4806451613 | D9: 1.1 | E9: 10 | F9: 0.4806451613 | G9: 0.7 | K9: Mar | L9: 0.3322580645 | M9: 1.1 | N9: 0.3322580645 | O9: 0.6 | Q9: Whole Installation table A5:G18:
A10: Apr | B10: 30 | C10: 0.5840909091 | D10: 1 | E10: 10 | F10: 0.5840909091 | G10: 0.8 | K10: Apr | L10: 0.4318181818 | M10: 0.8 | N10: 0.4318181818 | O10: 0.5 | Q10: Mean: for 1/2 hourly and daily periods calculate mean of values across all operational combustion lines for the month
A11: May | B11: 30 | C11: 0.7323481117 | D11: 2.9 | E11: 10 | F11: 0.7323481117 | G11: 0.9 | K11: May | L11: 0.6095238095 | M11: 2.9 | N11: 0.6095238095 | O11: 0.7
A12: Jun | B12: 30 | C12: 0.6566666667 | D12: 1.2 | E12: 10 | F12: 0.6566666667 | G12: 1 | K12: Jun | L12: 0.5233333333 | M12: 1.2 | N12: 0.5233333333 | O12: 1
A13: Jul | B13: 30 | C13: 0.6484983315 | D13: 1 | E13: 10 | F13: 0.6484983315 | G13: 0.8 | K13: Jul | L13: 0.5034482759 | M13: 1 | N13: 0.5034482759 | O13: 0.7 | Q13: Maximum: for 1/2 hourly and daily periods use the highest value across all operational combustion lines for the month
A14: Aug | B14: 30 | C14: 0.4967741935 | D14: 3 | E14: 10 | F14: 0.4967741935 | G14: 0.9 | K14: Aug | L14: 0.2064516129 | M14: 0.9 | N14: 0.2064516129 | O14: 0.5
A15: Sep | B15: 30 | C15: 0.495 | D15: 1 | E15: 10 | F15: 0.495 | G15: 0.8 | K15: Sep | L15: 0.2166666667 | M15: 0.7 | N15: 0.2166666667 | O15: 0.3
A16: Oct | B16: 30 | C16: 0.764516129 | D16: 3.2 | E16: 10 | F16: 0.764516129 | G16: 2.6 | K16: Oct | L16: 0.5064516129 | M16: 1.1 | N16: 0.5064516129 | O16: 0.8
A17: Nov | B17: 30 | C17: 0.8942857143 | D17: 5 | E17: 10 | F17: 0.8942857143 | G17: 2.2 | K17: Nov | L17: 0.6285714286 | M17: 1.1 | N17: 0.6285714286 | O17: 0.8
A18: Dec | B18: 30 | C18: =AVERAGE(L18,L33) -> 0.9016129032 | D18: 3.1 | E18: 10 | F18: 0.9016129032 | G18: 2.2 | K18: Dec | L18: 0.6032258065 | M18: 1 | N18: 0.6032258065 | O18: 0.8
E19: * ELV reduced to 5 mg/Nm3 on 3 December 2023 | K19: Annual | L19: =AVERAGE(L7:L18) -> 0.4599224077 | M19: =MAX(M7:M18) -> 2.9 | N19: =AVERAGE(N7:N18) -> 0.4599224077 | O19: =MAX(O7:O18) -> 1
J21: =+A6 -> 2023 | K21: mg/Nm3 | L21: Monthly 1/2 hourly mean | M21: Monthly 1/2 hourly maximum | N21: Monthly daily mean | O21: Monthly daily maximum
J22: A2 | K22: Jan | L22: 1.035483871 | M22: 1.3 | N22: 1.035483871 | O22: 1.1
K23: Feb | L23: 1 | M23: 3.1 | N23: 1 | O23: 1.3
K24: Mar | L24: 0.6290322581 | M24: 0.9 | N24: 0.6290322581 | O24: 0.7
K25: Apr | L25: 0.7363636364 | M25: 1 | N25: 0.7363636364 | O25: 0.8
K26: May | L26: 0.8551724138 | M26: 1.9 | N26: 0.8551724138 | O26: 0.9
K27: Jun | L27: 0.79 | M27: 1.1 | N27: 0.79 | O27: 0.9
K28: Jul | L28: 0.7935483871 | M28: 1 | N28: 0.7935483871 | O28: 0.8
K29: Aug | L29: 0.7870967742 | M29: 3 | N29: 0.7870967742 | O29: 0.9
K30: Sep | L30: 0.7733333333 | M30: 1 | N30: 0.7733333333 | O30: 0.8
K31: Oct | L31: 1.022580645 | M31: 3.2 | N31: 1.022580645 | O31: 2.6
K32: Nov | L32: 1.16 | M32: 5 | N32: 1.16 | O32: 2.2
K33: Dec | L33: 1.2 | M33: 3.1 | N33: 1.2 | O33: 2.2
K34: Annual | L34: =AVERAGE(L22:L33) -> 0.8985509432 | M34: =MAX(M22:M33) -> 5 | N34: =AVERAGE(N22:N33) -> 0.8985509432 | O34: =MAX(O22:O33) -> 2.6
J36: =+A6 -> 2023 | K36: mg/Nm3 | L36: Monthly 1/2 hourly mean | M36: Monthly 1/2 hourly maximum | N36: Monthly daily mean | O36: Monthly daily maximum
J37: A3 | K37: Jan
K38: Feb
K39: Mar
K40: Apr
K41: May
K42: Jun
K43: Jul
K44: Aug
K45: Sep
K46: Oct
K47: Nov
A48: Comments : | K48: Dec
K49: Annual | L49: =AVERAGE(L37:L48) ->  | M49: =MAX(M37:M48) -> 0 | N49: =AVERAGE(N37:N48) ->  | O49: =MAX(O37:O48) -> 0
J51: =+A6 -> 2023 | K51: mg/Nm3 | L51: Monthly 1/2 hourly mean | M51: Monthly 1/2 hourly maximum | N51: Monthly daily mean | O51: Monthly daily maximum
J52: A4 | K52: Jan
K53: Feb
K54: Mar
K55: Apr
K56: May
K57: Jun
K58: Jul
K59: Aug
K60: Sep
K61: Oct
K62: Nov
K63: Dec
K64: Annual | L64: =AVERAGE(L52:L63) ->  | M64: =MAX(M52:M63) -> 0 | N64: =AVERAGE(N52:N63) ->  | O64: =MAX(O52:O63) -> 0
J66: =+A6 -> 2023 | K66: mg/Nm3 | L66: Monthly 1/2 hourly mean | M66: Monthly 1/2 hourly maximum | N66: Monthly daily mean | O66: Monthly daily maximum
J67: A5 | K67: Jan
K68: Feb
K69: Mar
K70: Apr
K71: May
K72: Jun
K73: Jul
K74: Aug
K75: Sep
K76: Oct
K77: Nov
K78: Dec
K79: Annual | L79: =AVERAGE(L67:L78) ->  | M79: =MAX(M67:M78) -> 0 | N79: =AVERAGE(N67:N78) ->  | O79: =MAX(O67:O78) -> 0

Sheet CO 95% 10 min
A1: =+'Cover Page'!$B$29 -> Annual Performance Report 2023 | E1: =+'Cover Page'!$B$33 -> Suffolk Energy from Waste Facility
A3: Monitoring of Carbon Monoxide (10-minute avg) | E3: Whole Installation | H3: See Notes in Cell S3 | J3: =+A3 -> Monitoring of Carbon Monoxide (10-minute avg) | O3: Per Combustion Line | Q3: Notes: | S3: Notes:
S4: User to add logic to complete Whole installation, Table A5:H18. From the data in Per Combustion Line, Table K6:Q79, subject to No. of lines installed
A5: mg/Nm3 | B5: 10-minute Reference Periods | F5: Daily Reference Periods
A6: =+'Cover Page'!C39 -> 2023 | B6: 95%ile 10-min avg CO ELV | C6: 95%ile 10-min avg maximum | D6: Monthly CO 10-min avg mean | E6: 10-min avg maximum | F6: Daily CO ELV | G6: Monthly daily mean | H6: Highest daily maximum | K6: =+A6 -> 2023 | L6: mg/Nm3 | M6: 95%ile 10-min avg maximum | N6: Monthly CO 10-min avg mean | O6: 10-min avg maximum | P6: Monthly daily mean | Q6: Monthly daily maximum
A7: Jan | B7: 150 | C7: =AVERAGE(M7,M22) -> 8.679129839 | D7: =AVERAGE(N7,N22) -> 2.308064516 | E7: =MAX(O7,O22) -> 840.4 | F7: 50 | G7: =AVERAGE(P7,P22) -> 2.308064516 | H7: =MAX(Q7,Q22) -> 6.9 | K7: A1 | L7: Jan | M7: 12.99770069 | N7: =P7 -> 2.712903226 | O7: 300.1 | P7: 2.712903226 | Q7: 4.7
A8: Feb | B8: =+B7 -> 150 | C8: =AVERAGE(M8,M23) -> 1137.418916 | D8: =AVERAGE(N8,N23) -> 9.402769231 | E8: =MAX(O8,O23) -> 2324.6 | F8: =+F7 -> 50 | G8: =AVERAGE(P8,P23) -> 9.402769231 | H8: =MAX(Q8,Q23) -> 10.5 | L8: Feb | M8: 2269.525146 | N8: =P8 -> 15.96153846 | O8: 2324.6 | P8: 15.96153846 | Q8: 10.5
A9: Mar | B9: =+B8 -> 150 | C9: 39.55526733 | D9: 3.258064516 | E9: =MAX(O9,O24) -> 473.3 | F9: =+F8 -> 50 | G9: 3.258064516 | H9: 39.9 | L9: Mar | M9: 11.60520935 | N9: 2.219354839 | O9: 473.3 | P9: 2.219354839 | Q9: 5.9 | S9: Whole Installation table A5:H18:
A10: Apr | B10: 150 | C10: 11.21487665 | D10: 2.118181818 | E10: 308 | F10: 50 | G10: 2.118181818 | H10: 5.7 | L10: Apr | M10: 17.92032623 | N10: 2.418181818 | O10: 308 | P10: 2.418181818 | Q10: 5.7 | S10: Mean: for 10-min and daily periods use average of all operational combustion lines.
A11: May | B11: 150 | C11: 20.19699526 | D11: 2.36954023 | E11: 371 | F11: 50 | G11: 2.36954023 | H11: 8.1 | L11: May | M11: 25.09486961 | N11: 2.866666667 | O11: 336.3 | P11: 2.866666667 | Q11: 8.1
A12: Jun | B12: 150 | C12: 32.9885211 | D12: 3.101666667 | E12: 410 | F12: 50 | G12: 3.101666667 | H12: 14 | L12: Jun | M12: 61.27284622 | N12: 4.236666667 | O12: 396.9 | P12: 4.236666667 | Q12: 14
A13: Jul | B13: 150 | C13: 65.77737427 | D13: 3.417964405 | E13: 373.3 | F13: 50 | G13: 3.417964405 | H13: 13.5 | L13: Jul | M13: 69.22866821 | N13: 4.206896552 | O13: 371.2 | P13: 4.206896552 | Q13: 11.4 | S13: Maximum: for 10-min and daily periods use the highest of all operational combustion lines in any month.
A14: Aug | B14: 150 | C14: 40.68904495 | D14: 2.869354839 | E14: 391.5 | F14: 50 | G14: 2.869354839 | H14: 11.7 | L14: Aug | M14: 58.25368881 | N14: 3.487096774 | O14: 317.8 | P14: 3.487096774 | Q14: 11.7
A15: Sep | B15: 150 | C15: 25.99695969 | D15: 2.768333333 | E15: 891.1 | F15: 50 | G15: 2.768333333 | H15: 8.5 | L15: Sep | M15: 37.60946274 | N15: 3.34 | O15: 891.1 | P15: 3.34 | Q15: 8.5
A16: Oct | B16: 150 | C16: 10.88482475 | D16: 3.688709677 | E16: 381.1 | F16: 50 | G16: 3.688709677 | H16: 12.5 | L16: Oct | M16: 7.586503029 | N16: 4.461290323 | O16: 357.1 | P16: 4.461290323 | Q16: 12.5
A17: Nov | B17: 150 | C17: 199.1313162 | D17: 3.207142857 | E17: 1211.5 | F17: 50 | G17: 3.207142857 | H17: 9.7 | L17: Nov | M17: 366.4897461 | N17: 4.014285714 | O17: 1211.5 | P17: 4.014285714 | Q17: 9.7
A18: Dec | B18: 150 | C18: 51.76468754 | D18: 3.116129032 | E18: 368.2 | F18: 50 | G18: 3.116129032 | H18: 12.5 | L18: Dec | M18: 86.88931274 | N18: 3.522580645 | O18: 368.2 | P18: 3.522580645 | Q18: 12.5
L19: Annual | M19: =AVERAGE(M7:M18) -> 252.0394567 | O19: =MAX(O7:O18) -> 2324.6 | P19: =AVERAGE(P7:P18) -> 4.45395514 | Q19: =MAX(Q7:Q18) -> 14
K21: =+A6 -> 2023 | L21: mg/Nm3 | M21: 95%ile 10-min avg maximum | N21: Monthly CO 10-min avg mean | O21: 10-min avg maximum | P21: Monthly daily mean | Q21: Monthly daily maximum
K22: A2 | L22: Jan | M22: 4.360558987 | N22: =P22 -> 1.903225806 | O22: 840.4 | P22: 1.903225806 | Q22: 6.9
L23: Feb | M23: 5.312685013 | N23: =P23 -> 2.844 | O23: 492.3 | P23: 2.844 | Q23: 5.2
L24: Mar | M24: 67.50532532 | N24: 4.296774194 | O24: 456 | P24: 4.296774194 | Q24: 39.9
L25: Apr | M25: 4.509427071 | N25: 1.818181818 | O25: 214.6 | P25: 1.818181818 | Q25: 3
L26: May | M26: 15.2991209 | N26: 1.872413793 | O26: 371 | P26: 1.872413793 | Q26: 4.7
L27: Jun | M27: 4.704195976 | N27: 1.966666667 | O27: 410 | P27: 1.966666667 | Q27: 6.8
L28: Jul | M28: 62.32608032 | N28: 2.629032258 | O28: 373.3 | P28: 2.629032258 | Q28: 13.5
L29: Aug | M29: 23.12440109 | N29: 2.251612903 | O29: 391.5 | P29: 2.251612903 | Q29: 6.7
L30: Sep | M30: 14.38445663 | N30: 2.196666667 | O30: 409.7 | P30: 2.196666667 | Q30: 5.9
L31: Oct | M31: 14.18314648 | N31: 2.916129032 | O31: 381.1 | P31: 2.916129032 | Q31: 8.3
L32: Nov | M32: 31.77288628 | N32: 2.4 | O32: 428.5 | P32: 2.4 | Q32: 9.6
L33: Dec | M33: 16.64006233 | N33: 2.709677419 | O33: 304.2 | P33: 2.709677419 | Q33: 7.8
L34: Annual | M34: =AVERAGE(M22:M33) -> 22.01019553 | O34: =MAX(O22:O33) -> 840.4 | P34: =AVERAGE(P22:P33) -> 2.48369838 | Q34: =MAX(Q22:Q33) -> 39.9
K36: =+A6 -> 2023 | L36: mg/Nm3 | M36: 95%ile 10-min avg maximum | N36: Monthly CO 10-min avg mean | O36: 10-min avg maximum | P36: Monthly daily mean | Q36: Monthly daily maximum
K37: A3 | L37: Jan
L38: Feb
L39: Mar
L40: Apr
L41: May
L42: Jun
L43: Jul
L44: Aug
L45: Sep
L46: Oct
L47: Nov
A48: Comments : | L48: Dec
A49: Environment Agency explanatory note: The 10-minute average ELV is based on the “95th percentile”. In this case this means that 95% of the 10 minute averages in the relevant 24-hour period (i.e. 137) must be below 150 mg/Nm3, and 5% (i.e. 7) are allowed to be any value above 150 mg/Nm3. Whilst we expect operators to minimise CO emissions at all times, it is perfectly acceptable for the value of the maximum 10-minute average to be above 150 mg/Nm3, provided the 95th percentile ELV has been met for that period. The elevated CO results relate to a power loss incident on the 07/02/2023 as discussed on the 'Permit Compliance' tab. | L49: Annual | M49: =AVERAGE(M37:M48) ->  | O49: =MAX(O37:O48) -> 0 | P49: =AVERAGE(P37:P48) ->  | Q49: =MAX(Q37:Q48) -> 0
K51: =+A6 -> 2023 | L51: mg/Nm3 | M51: 95%ile 10-min avg maximum | N51: Monthly CO 10-min avg mean | O51: 10-min avg maximum | P51: Monthly daily mean | Q51: Monthly daily maximum
K52: A4 | L52: Jan
L53: Feb
L54: Mar
L55: Apr
L56: May
L57: Jun
L58: Jul
L59: Aug
L60: Sep
L61: Oct
L62: Nov
L63: Dec
L64: Annual | M64: =AVERAGE(M52:M63) ->  | O64: =MAX(O52:O63) -> 0 | P64: =AVERAGE(P52:P63) ->  | Q64: =MAX(Q52:Q63) -> 0
K66: =+A6 -> 2023 | L66: mg/Nm3 | M66: 95%ile 10-min avg maximum | N66: Monthly CO 10-min avg mean | O66: 10-min avg maximum | P66: Monthly daily mean | Q66: Monthly daily maximum
K67: A5 | L67: Jan
L68: Feb
L69: Mar
L70: Apr
L71: May
L72: Jun
L73: Jul
L74: Aug
L75: Sep
L76: Oct
L77: Nov
L78: Dec
L79: Annual | M79: =AVERAGE(M67:M78) ->  | O79: =MAX(O67:O78) -> 0 | P79: =AVERAGE(P67:P78) ->  | Q79: =MAX(Q67:Q78) -> 0

Sheet NH3
A1: =+'Cover Page'!$B$29 -> Annual Performance Report 2023 | E1: =+'Cover Page'!$B$33 -> Suffolk Energy from Waste Facility
A3: Monitoring of Ammnonia emissions | D3: Whole Installation | G3: See Notes in Cell Q3 | J3: =+A3 -> Monitoring of Ammnonia emissions | N3: Per Combustion Line | Q3: Notes:
Q4: User to add logic to complete Whole installation, Table A5:G18. From the data in Per Combustion Line, Table J6:O79, subject to No. of lines installed
A5: mg/Nm3 | B5: 1/2 Hourly Reference Periods | E5: Daily Reference Periods
A6: =+'Cover Page'!C39 -> 2023 | B6: 1/2 hourly NH3 ELV | C6: Monthly 1/2 hourly mean | D6: Highest 1/2 hourly maximum | E6: Daily NH3 ELV* | F6: Monthly daily mean | G6: Highest daily maximum | J6: =+A6 -> 2023 | K6: mg/Nm3 | L6: Monthly 1/2 hourly mean | M6: Monthly 1/2 hourly maximum | N6: Monthly daily mean | O6: Monthly daily maximum
A7: Jan | B7: None | E7: None | J7: A1 | K7: Jan
A8: Feb | B8: =+B7 -> None | E8: None | K8: Feb
A9: Mar | B9: =+B8 -> None | E9: None | K9: Mar | Q9: Whole Installation table A5:G18:
A10: Apr | B10: None | E10: None | K10: Apr | Q10: Mean: for 1/2 hourly and daily periods calculate mean of values across all operational combustion lines for the month
A11: May | B11: None | E11: None | K11: May
A12: Jun | B12: None | E12: None | K12: Jun
A13: Jul | B13: None | E13: None | K13: Jul | Q13: Maximum: for 1/2 hourly and daily periods use the highest value across all operational combustion lines for the month
A14: Aug | B14: None | E14: None | K14: Aug
A15: Sep | B15: None | E15: None | K15: Sep
A16: Oct | B16: None | E16: None | K16: Oct
A17: Nov | B17: None | E17: None | K17: Nov
A18: Dec | B18: None | C18: =AVERAGE(L18,L33) -> 1.258387097 | D18: =MAX(M18,M33) -> 5.78 | E18: 15 | F18: =AVERAGE(N18,N33) -> 1.258387097 | G18: =MAX(O18,O33) -> 2.7 | K18: Dec | L18: 1.078387097 | M18: 3.55 | N18: 1.078387097 | O18: 1.45
E19: * ELV came into force on 3 December 2023 | K19: Annual | L19: =AVERAGE(L7:L18) -> 1.078387097 | M19: =MAX(M7:M18) -> 3.55 | N19: =AVERAGE(N7:N18) -> 1.078387097 | O19: =MAX(O7:O18) -> 1.45
J21: =+A6 -> 2023 | K21: mg/Nm3 | L21: Monthly 1/2 hourly mean | M21: Monthly 1/2 hourly maximum | N21: Monthly daily mean | O21: Monthly daily maximum
J22: A2 | K22: Jan
K23: Feb
K24: Mar
K25: Apr
K26: May
K27: Jun
K28: Jul
K29: Aug
K30: Sep
K31: Oct
K32: Nov
K33: Dec | L33: 1.438387097 | M33: 5.78 | N33: 1.438387097 | O33: 2.7
K34: Annual | L34: =AVERAGE(L22:L33) -> 1.438387097 | M34: =MAX(M22:M33) -> 5.78 | N34: =AVERAGE(N22:N33) -> 1.438387097 | O34: =MAX(O22:O33) -> 2.7
J36: =+A6 -> 2023 | K36: mg/Nm3 | L36: Monthly 1/2 hourly mean | M36: Monthly 1/2 hourly maximum | N36: Monthly daily mean | O36: Monthly daily maximum
J37: A3 | K37: Jan
K38: Feb
K39: Mar
K40: Apr
K41: May
K42: Jun
K43: Jul
K44: Aug
K45: Sep
K46: Oct
K47: Nov
A48: Comments : | K48: Dec
A49: An indicated ELV value of zero in the table above means that no ammonia limit is/was set in the permit. | K49: Annual | L49: =AVERAGE(L37:L48) ->  | M49: =MAX(M37:M48) -> 0 | N49: =AVERAGE(N37:N48) ->  | O49: =MAX(O37:O48) -> 0
J51: =+A6 -> 2023 | K51: mg/Nm3 | L51: Monthly 1/2 hourly mean | M51: Monthly 1/2 hourly maximum | N51: Monthly daily mean | O51: Monthly daily maximum
J52: A4 | K52: Jan
K53: Feb
K54: Mar
K55: Apr
K56: May
K57: Jun
K58: Jul
K59: Aug
K60: Sep
K61: Oct
K62: Nov
K63: Dec
K64: Annual | L64: =AVERAGE(L52:L63) ->  | M64: =MAX(M52:M63) -> 0 | N64: =AVERAGE(N52:N63) ->  | O64: =MAX(O52:O63) -> 0
J66: =+A6 -> 2023 | K66: mg/Nm3 | L66: Monthly 1/2 hourly mean | M66: Monthly 1/2 hourly maximum | N66: Monthly daily mean | O66: Monthly daily maximum
J67: A5 | K67: Jan
K68: Feb
K69: Mar
K70: Apr
K71: May
K72: Jun
K73: Jul
K74: Aug
K75: Sep
K76: Oct
K77: Nov
K78: Dec
K79: Annual | L79: =AVERAGE(L67:L78) ->  | M79: =MAX(M67:M78) -> 0 | N79: =AVERAGE(N67:N78) ->  | O79: =MAX(O67:O78) -> 0
